Workbook

Sheet PO
A1: MINISTÉRIO DA INTEGRAÇÃO E DESENVOLVIMENTO REGIONAL - MDR | J1: BDI SERVIÇO | K1: 1.2624
A2: COMPANHIA DE DESENVOLVIMENTO DOS VALES DO SÃO FRANCISCO E DO PARNAÍBA | J2: BDI mat. | K2: 1.1528
A3: 1ª SUPERINTENDÊNCIA REGIONAL | J3: Pr. Equipe H.E | K3: 0.7
A4: BELO HORIZONTE - MG | E4: BDI SERVIÇOS: | G4: 0.2624 | H4: BASE SINAPI-MG 09-2023 | J4: Pr. Equipe H.E | K4: 0.8
A5: REFORMA DO ESCRITÓRIO DA CODEVASF - 16ª SR | E5: BDI MATEERIAIS: | G5: 0.1528 | H5: DATA: OUTUBRO/2023 | J5: ADMINISTRAÇÃO
A6: ITEM | B6: BASE | C6: CÓDIGO | D6: DESCRIÇÃO | E6: UNID. | F6: QUANT. | G6: UNIT. (S/ BDI) | H6: UNIT. (C/ BDI) | I6: VALOR TOTAL (C/ BDI) | J6: =I11/I7 -> 0.2172399322
C7: REFORMA ESCRITÓRIO | I7: =SUM(I91,I94,I32,I17,I73,I8,I58,I13) -> 1299451.98 | J7: 1299451.98 | K7: =I7-J7 -> 0 | M7: ='[1]PO FINAL'!I7 -> 1299173.62 | N7: =I7-M7 -> 278.36
A8: 1 | D8: ITENS DE RATEIO | I8: =SUM(I9:I12) -> 298088.89 | M8: ='[1]PO FINAL'!I8 -> 298069.08 | N8: =I8-M8 -> 19.81
A9: 1.1 | B9: CPU | C9: CPU001 | D9: MOBILIZAÇÃO | E9: GB | F9: 1 | G9: =(J9) -> 1013.95 | H9: =(J9*(1+G$4)) -> 1280.01048 | I9: =ROUND(F9*H9,2) -> 1280.01 | J9: =CPU!H18 -> 1013.95 | M9: ='[1]PO FINAL'!I9 -> 1280.01 | N9: 0
A10: 1.2 | B10: CPU | C10: CPU002 | D10: DESMOBILIZAÇÃO | E10: GB | F10: 1 | G10: 1013.95 | H10: =(J10*(1+G$4)) -> 1280.01048 | I10: =ROUND(F10*H10,2) -> 1280.01 | J10: =CPU!H30 -> 1013.95 | M10: ='[1]PO FINAL'!I10 -> 1280.01 | N10: 0
A11: 1.3 | B11: CPU | C11: CPU003 | D11: ADMINISTRAÇÃO LOCAL | E11: GB | F11: 1 | G11: 223616.02 | H11: 282292.8636 | I11: 282292.86 | J11: =CPU!H49 -> 223616.02 | M11: ='[1]PO FINAL'!I11 -> 273794.77 | N11: =I11-M11 -> 8498.09
A12: 1.4 | B12: CPU | C12: CPU041 | D12: ADICIONAL HORAS EXTRAS PARA TRABALHO EM FINAIS DE SEMANA | E12: MÊS | F12: 10 | G12: 1048.48 | H12: 1323.601152 | I12: 13236.01 | J12: =CPU!H748 -> 1048.48 | M12: ='[1]PO FINAL'!I12 -> 21714.29 | N12: -8478.28
A13: 2 | D13: INST. PRELIMINARES E LIMPEZA | I13: =SUM(I14:I16) -> 32866.33 | M13: ='[1]PO FINAL'!I13 -> 20105.79 | N13: 12760.54
A14: 2.1 | B14: CPU | C14: CPU040 | D14: LIMPEZA DIÁRIA DAS ÁREAS DE ACESSO, CONSIDERANDO AS ÁREAS INTERNAS COMUNS A OBRA E TRABALHO INTERNO E AS ÁREAS COMUNS DO PRÉDIO QUE SERÃO UTILIZADAS, CONSIDERANDO ADICIONAL NOTURNO E HORA EXTRA | E14: UNID. | F14: 160 | G14: =(J14) -> 98.75294118 | H14: 124.6657129 | I14: =ROUND(F14*H14,2) -> 19946.51 | J14: =CPU!H734 -> 98.75294118 | M14: ='[1]PO FINAL'!I14 -> 10596.59 | N14: 9349.92 | O14: =10*4*5 -> 200
A15: 2.2 | B15: SETOP | C15: ED-50266 | D15: LIMPEZA FINAL PARA ENTREGA DA OBRA, CONSIDERANDO ADICIONAL NOTURNO E HORA EXTRA | E15: M2 | F15: 512 | G15: 10.12857143 | H15: 12.78630857 | I15: =ROUND(F15*H15,2) -> 6546.59 | J15: =K15/$K$3 -> 10.12857143 | K15: 7.09 | L15: =J15/K15-1 -> 0.4285714286 | M15: ='[1]PO FINAL'!I15 -> 6110.15 | N15: 436.44
A16: 2.3 | B16: SETOP | C16: ED-50159 | D16: TAPUME EM CHAPA COMPENSADO DE 12 MM E PONTALETES H = 2,20 M, CONSIDERANDO ADICIONAL NOTURNO E HORA EXTRA | E16: M | F16: 20 | G16: 252.425 | H16: 318.66132 | I16: 6373.23 | J16: =K16/$K$4 -> 252.425 | K16: 201.94 | L16: =J16/K16-1 -> 0.25 | M16: ='[1]PO FINAL'!I16 -> 3399.05 | N16: 2974.18 | O16: 20
A17: 3 | D17: DEMOLIÇÕES E REMOÇÕES | I17: =SUM(I18:I31) -> 91647.43 | M17: ='[1]PO FINAL'!I17 -> 111718.21 | N17: -20070.78
A18: 3.1 | B18: CPU | C18: CPU047 | D18: DEMOLIÇÃO DE ALVENARIA DE BLOCO FURADO, DE FORMA MANUAL, SEM REAPROVEITAMENTO, CONSIDERANDO ADICIONAL NOTURNO E HORA EXTRA | E18: M3 | F18: =19.8*2+9+0.2 -> 48.8 | G18: =(J18) -> 91.96640824 | H18: 116.0983938 | I18: =ROUND(F18*H18,2) -> 5665.6 | J18: =CPU!H849 -> 91.96640824 | M18: ='[1]PO FINAL'!I18 -> 6421.02 | N18: -755.42
A19: 3.2 | B19: CPU | C19: CPU048 | D19: DEMOLIÇÃO DE LAJES, DE FORMA MANUAL, SEM REAPROVEITAMENTO, CONSIDERANDO ADICIONAL NOTURNO E HORA EXTRA | E19: M3 | F19: 3.15 | G19: 681.6857876 | H19: 860.5601383 | I19: 2710.76 | J19: =CPU!H862 -> 681.6857876 | M19: ='[1]PO FINAL'!I19 -> 2730.84 | N19: -20.08
A20: 3.3 | B20: CPU | C20: CPU049 | D20: DEMOLIÇÃO DE FORRO DE GESSO INCLUSIVE AFASTAMENTO E EMPILHAMENTO, CONSIDERANDO ADICIONAL NOTURNO E HORA EXTRA | E20: M2 | F20: =272*2 -> 544 | G20: 15.06825 | H20: 19.0221588 | I20: 10348.05 | J20: =CPU!H875 -> 15.06825 | M20: ='[1]PO FINAL'!I20 -> 11727.79 | N20: -1379.74
A21: 3.4 | B21: SETOP | C21: ED-48484 | D21: DEMOLIÇÃO DE PISO DE TACO DE MADEIRA, INCLUSIVE AFASTAMENTO, CONSIDERANDO ADICIONAL NOTURNO E HORA EXTRA | E21: M2 | F21: 100 | G21: 30.48571429 | H21: 38.48516571 | I21: 3848.52 | J21: =K21/$K$3 -> 30.48571429 | K21: 21.34 | L21: =J21/K21-1 -> 0.4285714286 | M21: ='[1]PO FINAL'!I21 -> 3591.95 | N21: 256.57
A22: 3.5 | B22: ='[1]PO FINAL'!B22 -> CPU | C22: CPU051 | D22: DEMOLIÇÃO DE PISO VINÍLICO, INCLUSIVE AFASTAMENTO, CONSIDERANDO ADICIONAL NOTURNO E HORA EXTRA | E22: M2 | F22: 100 | G22: 15.88588235 | H22: 20.05433788 | I22: 2005.43 | J22: =CPU!H901 -> 15.88588235 | M22: ='[1]PO FINAL'!I22 -> 2272.82 | N22: -267.39
A23: 3.6 | B23: CPU | C23: CPU052 | D23: DEMOLIÇÃO DE PISO CERÂMICO OU LADRILHO HIDRÁULICO, INCLUSIVE AFASTAMENTO, CONSIDERANDO HORA EXTRA | E23: M2 | F23: 40 | G23: =(J23) -> 28.18782353 | H23: 35.58430842 | I23: =ROUND(F23*H23,2) -> 1423.37 | J23: =CPU!H914 -> 28.18782353 | M23: ='[1]PO FINAL'!I23 -> 1613.16 | N23: -189.79
A24: 3.7 | B24: CPU | C24: CPU053 | D24: REMOÇÃO DE PORTA OU JANELA INCLUSIVE MARCO E ALIZAR, INCLUSIVE AFASTAMENTO E EMPILHAMENTO, CONSIDERANDO ADICIONAL NOTURNO E HORA EXTRA | E24: M2 | F24: =13.4*2 -> 26.8 | G24: =(J24) -> 23.82882353 | H24: 30.08150682 | I24: =ROUND(F24*H24,2) -> 806.18 | J24: =CPU!H927 -> 23.82882353 | M24: ='[1]PO FINAL'!I24 -> 913.68 | N24: -107.5
A25: 3.8 | B25: CPU | C25: CPU054 | D25: DEMOLIÇÃO DE REVESTIMENTO CERÂMICO, DE FORMA MANUAL, SEM REAPROVEITAMENTO, CONSIDERANDO ADICIONAL NOTURNO E HORA EXTRA | E25: M2 | F25: =82.65*2 -> 165.3 | G25: =(J25) -> 37.45642059 | H25: 47.28498535 | I25: =ROUND(F25*H25,2) -> 7816.21 | J25: =CPU!H940 -> 37.45642059 | M25: ='[1]PO FINAL'!I25 -> 8858.37 | N25: -1042.16
A26: 3.9 | B26: CPU | C26: CPU055 | D26: REMOÇÃO DE VIDRO LISO COMUM DE ESQUADRIA COM BAGUETE DE MADEIRA, CONSIDERANDO ADICIONAL NOTURNO E HORA EXTRA | E26: M2 | F26: =29.5*2 -> 59 | G26: =(J26) -> 33.02444118 | H26: 41.69005454 | I26: =ROUND(F26*H26,2) -> 2459.71 | J26: =CPU!H953 -> 33.02444118 | M26: ='[1]PO FINAL'!I26 -> 2787.67 | N26: -327.96
A27: 3.10 | B27: CPU | C27: CPU039 | D27: REMOÇÃO DE APARELHOS SANITÁRIOS, DE FORMA MANUAL, SEM REAPROVEITAMENTO, CONSIDERANDO ADICIONAL NOTURNO E HORA EXTRA | E27: UNID. | F27: 10 | G27: =(J27) -> 131.1811765 | H27: 165.6031172 | I27: =ROUND(F27*H27,2) -> 1656.03 | J27: =CPU!H722 -> 131.1811765 | M27: ='[1]PO FINAL'!I27 -> 1173.02 | N27: 483.01
A28: 3.11 | B28: CPU | C28: ED-48437 | D28: REMOÇÃO DE BANCADA DE PEDRA (MÁRMORE, GRANITO, ARDÓSIA, MARMORITE, ETC.), CONSIDERANDO ADICIONAL NOTURNO E HORA EXTRA | E28: M2 | F28: 8 | G28: 67.81428571 | H28: 85.60875429 | I28: 684.87 | J28: =K28/$K$3 -> 67.81428571 | K28: 47.47 | L28: =J28/K28-1 -> 0.4285714286 | M28: ='[1]PO FINAL'!I28 -> 639.21 | N28: 45.66
A29: 3.12 | B29: CPU | C29: CPU004 | D29: ALUGUEL CAÇAMBA 5 m³ A SER ENTREGUE EM REGIÃO CENTRAL EM DIAS DE SEMANA NO PERIODO APÓS 19:00 E RETIRADA NO MESMO DIA OU ATÉ AS 06:00 DO DIA SEGUINTE OU ENTREGUE NO SABADO APÓS AS 14:00 E RETIRADA ATÉ AS 06:00 DA PROXIMA SEGUNDA FEIRA | E29: UNID. | F29: =54-10 -> 44 | G29: 400 | H29: 504.96 | I29: =ROUND(F29*H29,2) -> 22218.24 | J29: =CPU!H61 -> 400 | M29: ='[1]PO FINAL'!I29 -> 29994.62 | N29: -7776.38
A30: 3.13 | B30: CPU | C30: CPU042 | D30: TRANSPORTE MANUAL (TERRA, AREIA, ENTULHO) PARA RETIRADA DA ÁREA INTERNA DA REFORMA, TRANSPORTE PELO ELEVADOR E DESCARGA MANUAL EM CAÇAMBA A ATÉ 30 M DO EDIFÍCIO - FINAL SEMANA | E30: M3 | F30: =167.8-25 -> 142.8 | G30: 139.4823529 | H30: 176.0825224 | I30: =ROUND(F30*H30,2) -> 25144.58 | J30: =CPU!H760 -> 139.4823529 | M30: ='[1]PO FINAL'!I30 -> 33486.2 | N30: -8341.62
A31: 3.14 | B31: CPU | C31: CPU043 | D31: TRANSPORTE MANUAL DE MATERIAIS NOVOS, RECEBENDO A DESCARGA A ATÉ 30 M DO EDIFÍCIO, TRANSPORTE PELO ELEVADOR E DESCARGA NA ÁREA INTERNA DA REFORMA - FINAL DE SEMANA | E31: M3 | F31: 27.6 | G31: 139.4823529 | H31: 176.0825224 | I31: 4859.88 | J31: =CPU!H772 -> 139.4823529 | M31: ='[1]PO FINAL'!I31 -> 5507.86 | N31: -647.98
A32: 4 | D32: CONSTRUÇÃO CIVIL | I32: =SUM(I33:I57) -> 471569.65 | M32: ='[1]PO FINAL'!I32 -> 476691.84 | N32: -5122.19
A33: 4.1 | B33: CPU | C33: CPU044 | D33: REVESTIMENTO CERÂMICO PARA PAREDES TIPO ELIANE METRO WHITE 10x20cm OU PORTINARI BORDA BOLD DECORA MATTE WHITE 8x25 OU INCEPA RV GLACIAL SNOW 33x60 OU SIMILAR A CRITÉRIO DA FISCALIZAÇÃO, ASSENTADO COM ARGAMASSA INDUSTRIALIZADA COM ADITIVO IMPERMEABILIZANTE, CONSIDERANDO ADICIONAL NOTURNO E HORA EXTRA | E33: M2 | F33: 369.8 | G33: =(J33) -> 205.3071176 | H33: 259.1797053 | I33: =ROUND(F33*H33,2) -> 95844.66 | J33: =CPU!H795 -> 205.3071176 | M33: ='[1]PO FINAL'!I33 -> 94859.2 | N33: 985.46
A34: 4.2 | B34: SINAPI | C34: 88489 | D34: APLICAÇÃO MANUAL DE PINTURA COM TINTA LÁTEX ACRÍLICA EM PAREDES, DUAS DEMÃOS. CONSIDERANDO ADICIONAL NOTURNO E HORA EXTRA | E34: M2 | F34: 301 | G34: =(J34) -> 14.55 | H34: 18.36792 | I34: =ROUND(F34*H34,2) -> 5528.74 | J34: =K34/$K$4 -> 14.55 | K34: 11.64 | L34: =J34/K34-1 -> 0.25 | M34: ='[1]PO FINAL'!I34 -> 5897.33 | N34: -368.59 | P34: 0.4 | Q34: 0.4
A35: 4.3 | B35: SINAPI | C35: 103335 | D35: ALVENARIA DE VEDAÇÃO DE BLOCOS CERÂMICOS FURADOS NA HORIZONTAL DE 14X9X19 CM (ESPESSURA 14 CM, BLOCO DEITADO) E ARGAMASSA DE ASSENTAMENTO COM PREPARO MANUAL. CONSIDERANDO ADICIONAL NOTURNO E HORA EXTRA | E35: M2 | F35: 40.25 | G35: =(J35) -> 179.4875 | H35: 226.58502 | I35: =ROUND(F35*H35,2) -> 9120.05 | J35: =K35/$K$4 -> 179.4875 | K35: 143.59 | L35: 0.25 | M35: ='[1]PO FINAL'!I35 -> 9728.05 | N35: -608 | P35: 0.6 | Q35: =P35*1.38 -> 0.828
A36: 4.4 | B36: SINAPI | C36: 96361 | D36: PAREDE COM PLACAS DE GESSO ACARTONADO (DRYWALL), PARA USO INTERNO, COM DUAS FACES SIMPLES E ESTRUTURA METÁLICA COM GUIAS DUPLAS, CONSIDERANDO ADICIONAL NOTURNO E HORA EXTRA | E36: M2 | F36: 100 | G36: 179.9875 | H36: 227.21622 | I36: 22721.62 | J36: =K36/$K$4 -> 179.9875 | K36: 143.99 | L36: 0.25 | M36: ='[1]PO FINAL'!I36 -> 24236.4 | N36: -1514.78 | P36: =SUM(P34:P35) -> 1 | Q36: =SUM(Q34:Q35) -> 1.228
A37: 4.5 | B37: SINAPI | C37: 96369 | D37: PAREDE COM PLACAS DE GESSO ACARTONADO (DRYWALL), PARA USO INTERNO, COM DUAS FACES DUPLAS E ESTRUTURA METÁLICA COM GUIAS DUPLAS, CONSIDERANDO ADICIONAL NOTURNO E HORA EXTRA | E37: M2 | F37: 98 | G37: 253.85 | H37: 320.46024 | I37: 31405.1 | J37: 253.85 | K37: 203.08 | L37: 0.25 | M37: ='[1]PO FINAL'!I37 -> 33498.78 | N37: -2093.68
A38: 4.6 | B38: SINAPI | C38: 87878 | D38: CHAPISCO APLICADO EM ALVENARIAS E ESTRUTURAS DE CONCRETO INTERNAS, COM COLHER DE PEDREIRO. ARGAMASSA TRAÇO 1:3 COM PREPARO MANUAL, CONSIDERANDO ADICIONAL NOTURNO E HORA EXTRA | E38: M2 | F38: 317 | G38: 5.8625 | H38: 7.40082 | I38: 2346.06 | J38: 5.8625 | K38: 4.69 | L38: 0.25 | M38: ='[1]PO FINAL'!I38 -> 2502.46 | N38: -156.4 | P38: M.O | Q38: 0.5 | R38: =Q38*1.5 -> 0.75
A39: 4.7 | B39: SINAPI | C39: 87556 | D39: MASSA ÚNICA, PARA RECEBIMENTO DE PINTURA, EM ARGAMASSA INDUSTRIALIZADA, PREPARO MECÂNICO, APLICADO COM EQUIPAMENTO DE MISTURA E PROJEÇÃO DE 1,5 M3/H DE ARGAMASSA EM FACES INTERNAS DE PAREDES, CONSIDERANDO ADICIONAL NOTURNO E HORA EXTRA | E39: M2 | F39: 301 | G39: =(J39) -> 50.9625 | H39: 64.33506 | I39: 19364.85 | J39: 50.9625 | K39: 40.77 | L39: 0.25 | M39: ='[1]PO FINAL'!I39 -> 20655.84 | N39: -1290.99 | P39: MAT | Q39: =1-Q38 -> 0.5 | R39: =Q39 -> 0.5
A40: 4.8 | B40: SINAPI | C40: 87559 | D40: EMBOÇO, PARA RECEBIMENTO DE CERÂMICA, EM ARGAMASSA INDUSTRIALIZADA, PREPARO MECÂNICO, APLICADO COM EQUIPAMENTO DE MISTURA E PROJEÇÃO DE 1,5 M3/H DE ARGAMASSA EM FACES INTERNAS DE PAREDES, CONSIDERANDO ADICIONAL NOTURNO E HORA EXTRA | E40: M2 | F40: 235 | G40: =(J40) -> 45.35 | H40: 57.24984 | I40: 13453.71 | J40: =K40/$K$4 -> 45.35 | K40: 36.28 | L40: 0.25 | M40: ='[1]PO FINAL'!I40 -> 14350.63 | N40: -896.92 | Q40: =SUM(Q38:Q39) -> 1 | R40: =SUM(R38:R39) -> 1.25
A41: 4.9 | B41: SINAPI | C41: 87416 | D41: APLICAÇÃO MANUAL DE GESSO DESEMPENADO (SEM TALISCAS) EM TETO DE AMBIENTES DE ÁREA MENOR QUE 5M², ESPESSURA DE 1,0CM. CONSIDERANDO ADICIONAL NOTURNO E HORA EXTRA | E41: M2 | F41: 544.05 | G41: =(J41) -> 49.325 | H41: 62.26788 | I41: 33876.84 | J41: =K41/$K$4 -> 49.325 | K41: 39.46 | L41: 0.25 | M41: ='[1]PO FINAL'!I41 -> 36135.3 | N41: -2258.46
A42: 4.10 | B42: CPU | C42: ED-48533 | D42: DIVISÓRIA EM GRANITO E = 3 CM, INCLUSIVE FERRAGENS EM LATÃO CROMADO, CONSIDERANDO ADICIONAL NOTURNO E HORA EXTRA | E42: M2 | F42: 42.65 | G42: 748.675 | H42: 945.12732 | I42: 40309.68 | J42: =K42/$K$4 -> 748.675 | K42: 598.94 | L42: 0.25 | M42: ='[1]PO FINAL'!I42 -> 42996.99 | N42: -2687.31
A43: 4.11 | B43: CPU | C43: CPU006 | D43: DIVISÓRIA EM MDF, FORNECIMENTO E INSTALAÇÃO, CONSIDERANDO ADICIONAL NOTURNO E HORA EXTRA | E43: M2 | F43: 65.75 | G43: 749.47097 | H43: 946.1321525 | I43: 62208.19 | J43: =CPU!H96 -> 749.47097 | M43: ='[1]PO FINAL'!I43 -> 54961.96 | N43: 7246.23
A44: 4.12 | B44: CPU | C44: CPU007 | D44: PAINEL EM MDF FREIJÓ, FORNECIMENTO E INSTALAÇÃO, CONSIDERANDO ADICIONAL NOTURNO E HORA EXTRA | E44: M2 | F44: 17.3 | G44: 749.47097 | H44: 946.1321525 | I44: 16368.09 | J44: =CPU!H118 -> 749.47097 | M44: ='[1]PO FINAL'!I44 -> 14461.47 | N44: 1906.62
A45: 4.13 | B45: CPU | C45: CPU045 | D45: REVESTIMENTO COM PORCELANATO TIPO ELIANE PALLADIO CINZA 90x90 OU BIANCOGRES CEMENTO AVORIO 90x90 APLICADO EM PISO ELAINE PALLADIO ACETINADO 90x90cm OU SIMILAR A CRITÉRIO DA FISCALIZAÇÃO, ASSENTADO COM ARGAMASSA INDUSTRIALIZADA COM ADITIVO IMPERMEABILIZANTE, CONSIDERANDO ADICIONAL NOTURNO E HORA EXTRA | E45: M2 | F45: 90 | G45: 285.9850941 | H45: 361.0275828 | I45: 32492.48 | J45: =CPU!H818 -> 285.9850941 | M45: ='[1]PO FINAL'!I45 -> 36177 | N45: -3684.52
A46: 4.14 | B46: CPU | C46: CPU057 | D46: LIMPEZA, REPAROS E APLICAÇÃO DE VERNIZ, COM ACABAMENTO BRILHANTE, EM PISO DE MADEIRA TIPO TACO, DUAS (2) DEMÃOS, INCLUSIVE RASPAGEM E CALAFETAÇÃO, CONSIDERANDO ADICIONAL NOTURNO E HORA EXTRA | E46: M2 | F46: 420 | G46: 103.491375 | H46: 130.6475118 | I46: 54871.95 | J46: =CPU!H989 -> 103.491375 | M46: ='[1]PO FINAL'!I46 -> 53173.5 | N46: 1698.45
A47: 4.15 | B47: CPU | C47: ED-50734 | D47: FRISO DE ALUMÍNIO ANODIZADO NATURAL 3/8" (USO INTERNO), CONSIDERANDO ADICIONAL NOTURNO E HORA EXTRA | E47: M | F47: 30 | G47: 28.0375 | H47: 35.39454 | I47: 1061.84 | J47: =K47/$K$4 -> 28.0375 | K47: 22.43 | L47: =J47/K47-1 -> 0.25 | M47: ='[1]PO FINAL'!I47 -> 1132.63 | N47: -70.79
A48: 4.16 | B48: CPU | C48: ED-51150 | D48: ESPELHO (60X90CM) ESP.4MM INCLUSIVE FIXAÇÃO COM PARAFUSO FINESSON - FORNECIMENTO E INSTALAÇÃO, CONSIDERANDO ADICIONAL NOTURNO E HORA EXTRA | E48: UNID. | F48: 11 | G48: 290.275 | H48: 366.44316 | I48: 4030.87 | J48: 290.275 | K48: 232.22 | L48: =J48/K48-1 -> 0.25 | M48: ='[1]PO FINAL'!I48 -> 4299.6 | N48: -268.73
A49: 4.17 | B49: CPU | C49: CPU035 | D49: QUADRO ILUSTRATIVO COM FOTOGRAFIAS IMPRESSAS EM ADESIVO APLICADOS SOBRE PLACA DE ACRÍLICO 1,00 X 1,50 M CONFORME PROJETO - FORNECIMENTO E INSTALAÇÃO | E49: UNID. | F49: 2 | G49: 1113.258824 | H49: 1405.377939 | I49: 2810.76 | J49: =CPU!H660 -> 1113.258824 | M49: ='[1]PO FINAL'!I49 -> 2955.25 | N49: -144.49
A50: 4.18 | B50: CPU | C50: CPU036 | D50: QUADRO ILUSTRATIVO COM FOTOGRAFIAS IMPRESSAS EM ADESIVO APLICADOS SOBRE PLACA DE ACRÍLICO 2,30 X 1,50 M CONFORME PROJETO - FORNECIMENTO E INSTALAÇÃO | E50: UNID. | F50: 1 | G50: 2416.517647 | H50: 3050.611878 | I50: 3050.61 | J50: =CPU!H678 -> 2416.517647 | M50: ='[1]PO FINAL'!I50 -> 3225.68 | N50: -175.07
A51: 4.19 | B51: CPU | C51: CPU037 | D51: QUADRO ILUSTRATIVO COM FOTOGRAFIAS IMPRESSAS EM ADESIVO APLICADOS SOBRE PLACA DE ACRÍLICO 2,60 X 1,60 M CONFORME PROJETO - FORNECIMENTO E INSTALAÇÃO | E51: UNID. | F51: 4 | G51: 2877.376471 | H51: 3632.400056 | I51: 14529.6 | J51: =CPU!H696 -> 2877.376471 | M51: ='[1]PO FINAL'!I51 -> 15375.34 | N51: -845.74
A52: 4.20 | B52: CPU | C52: CPU029 | D52: BANCADA DE GRANITO BRANCO 1,40 X 0,5 M BD1, CONFORME PROJETO - FORNECIMENTO E INSTALAÇÃO, CONSIDERANDO ADICIONAL NOTURNO E HORA EXTRA | E52: UNID. | F52: 1 | G52: 652.7562518 | H52: 824.0394922 | I52: 824.04 | J52: =CPU!H537 -> 652.7562518 | M52: ='[1]PO FINAL'!I52 -> 807.04 | N52: 17
A53: 4.21 | B53: CPU | C53: CPU030 | D53: BANCADA DE GRANITO BRANCO 1,90 X 0,5 M BD2, CONFORME PROJETO - FORNECIMENTO E INSTALAÇÃO, CONSIDERANDO ADICIONAL NOTURNO E HORA EXTRA | E53: UNID. | F53: 1 | G53: 814.6358776 | H53: 1028.396332 | I53: 1028.4 | J53: =CPU!H558 -> 814.6358776 | M53: ='[1]PO FINAL'!I53 -> 1021.91 | N53: 6.49
A54: 4.22 | B54: CPU | C54: CPU031 | D54: BANCADA DE GRANITO BRANCO 3,07 X 0,5 M BD3, CONFORME PROJETO - FORNECIMENTO E INSTALAÇÃO, CONSIDERANDO ADICIONAL NOTURNO E HORA EXTRA | E54: UNID. | F54: 1 | G54: 1229.375607 | H54: 1551.963766 | I54: 1551.96 | J54: =CPU!H579 -> 1229.375607 | M54: ='[1]PO FINAL'!I54 -> 1541.4 | N54: 10.56
A55: 4.23 | B55: CPU | C55: CPU032 | D55: BANCADA DE GRANITO BRANCO 2,56 X 0,5 M BD4, CONFORME PROJETO - FORNECIMENTO E INSTALAÇÃO,CONSIDERANDO ADICIONAL NOTURNO E HORA EXTRA | E55: UNID. | F55: 1 | G55: 1071.709254 | H55: 1352.925762 | I55: 1352.93 | J55: =CPU!H600 -> 1071.709254 | M55: ='[1]PO FINAL'!I55 -> 1329.93 | N55: 23
A56: 4.24 | B56: CPU | C56: CPU033 | D56: BANCADA DE GRANITO BRANCO 1,00 X 0,5 M BD5, CONFORME PROJETO - FORNECIMENTO E INSTALAÇÃO, CONSIDERANDO ADICIONAL NOTURNO E HORA EXTRA | E56: UNID. | F56: 1 | G56: 547.9844871 | H56: 691.7756165 | I56: 691.78 | J56: =CPU!H621 -> 547.9844871 | M56: ='[1]PO FINAL'!I56 -> 666.51 | N56: 25.27
A57: 4.25 | B57: CPU | C57: CPU034 | D57: BANCADA DE GRANITO BRANCO 1,10 X 0,5 M BD5, CONFORME PROJETO - FORNECIMENTO E INSTALAÇÃO, CONSIDERANDO ADICIONAL NOTURNO E HORA EXTRA | E57: UNID. | F57: 1 | G57: 574.1774282 | H57: 724.8415854 | I57: 724.84 | J57: =CPU!H642 -> 574.1774282 | M57: ='[1]PO FINAL'!I57 -> 701.64 | N57: 23.2
A58: 5 | D58: ESQUADRIAS | I58: =SUM(I59:I72) -> 137355.38 | M58: ='[1]PO FINAL'!I58 -> 144555.7 | N58: -7200.32
A59: 5.1 | B59: CPU | C59: 90843 | D59: KIT DE PORTA DE MADEIRA PARA PINTURA, SEMI-OCA (LEVE OU MÉDIA), PADRÃO MÉDIO, 80X210CM, ESPESSURA DE 3,5CM, ITENS INCLUSOS: DOBRADIÇAS, MONTAGEM E INSTALAÇÃO DO BATENTE, FECHADURA COM EXECUÇÃO DO FURO - FORNECIMENTO E INSTALAÇÃO. CONSIDERANDO ADICIONAL NOTURNO E HORA EXTRA | E59: UNID. | F59: 11 | G59: =(J59) -> 1294.7125 | H59: 1634.44506 | I59: =ROUND(F59*H59,2) -> 17978.9 | J59: =K59/$K$4 -> 1294.7125 | K59: 1035.77 | L59: =J59/K59-1 -> 0.25 | M59: ='[1]PO FINAL'!I59 -> 19177.49 | N59: -1198.59
A60: 5.2 | B60: CPU | C60: CPU008 | D60: PORTA DE CORRER DE MADEIRA, SEMIOCA 80 X 210 CM, INCLUSO TRILHO, ROLDANA, PUXADOR E FECHADURA - FORNECIMENTO E INSTALAÇÃO, CONSIDERANDO ADICIONAL NOTURNO E HORA EXTRA | E60: UNID. | F60: 6 | G60: 2874.323281 | H60: 3628.54571 | I60: 21771.27 | J60: =K60/$K$4 -> 2874.323281 | K60: 2299.458625 | L60: 0.25 | M60: ='[1]PO FINAL'!I60 -> 23222.69 | N60: -1451.42
A61: 5.3 | B61: CPU | C61: CPU009 | D61: PORTA DE CORRER DE VIDRO 220 X 200 CM, INCLUSO TRILHO, ROLDANA, PUXADOR - FORNECIMENTO E INSTALAÇÃO, CONSIDERANDO ADICIONAL NOTURNO E HORA EXTRA | E61: UNID. | F61: 4 | G61: 3049.81875 | H61: 3850.09119 | I61: 15400.36 | J61: 3049.81875 | K61: 2439.855 | L61: 0.25 | M61: ='[1]PO FINAL'!I61 -> 16427.06 | N61: -1026.7
A62: 5.4 | B62: CPU | C62: CPU010 | D62: PORTA TIPO VAI-VEM DE MADEIRA, SEMIOCA 150 X 210 CM, INCLUSO ADUELA E DOBRADIÇAS - FORNECIMENTO E INSTALAÇÃO, CONSIDERANDO ADICIONAL NOTURNO E HORA EXTRA | E62: UNID. | F62: 1 | G62: 1787.617375 | H62: 2256.688174 | I62: 2256.69 | J62: 1787.617375 | K62: 1430.0939 | L62: 0.25 | M62: ='[1]PO FINAL'!I62 -> 2407.13 | N62: -150.44
A63: 5.5 | B63: CPU | C63: CPU011 | D63: PORTA DE CORRER DE MADEIRA, SEMIOCA 1,10 X 210 CM, INCLUSO TRILHO, ROLDANA, PUXADOR E FECHADURA - FORNECIMENTO E INSTALAÇÃO, CONSIDERANDO ADICIONAL NOTURNO E HORA EXTRA | E63: UNID. | F63: 1 | G63: 3752.373125 | H63: 4736.995833 | I63: 4737 | J63: 3752.373125 | K63: 3001.8985 | L63: 0.25 | M63: ='[1]PO FINAL'!I63 -> 5052.8 | N63: -315.8
A64: 5.6 | B64: CPU | C64: 90841 | D64: KIT DE PORTA DE MADEIRA PARA PINTURA, SEMI-OCA (LEVE OU MÉDIA), PADRÃO MÉDIO, 60X210CM, ESPESSURA DE 3,5CM, ITENS INCLUSOS: DOBRADIÇAS, MONTAGEM E INSTALAÇÃO DO BATENTE, FECHADURA COM EXECUÇÃO DO FURO - FORNECIMENTO E INSTALAÇÃO. CONSIDERANDO ADICIONAL NOTURNO E HORA EXTRA | E64: UNID. | F64: 10 | G64: 1216.875 | H64: 1536.183 | I64: 15361.83 | J64: 1216.875 | K64: 973.5 | L64: 0.25 | M64: ='[1]PO FINAL'!I64 -> 16385.95 | N64: -1024.12
A65: 5.7 | B65: CPU | C65: 90842 | D65: KIT DE PORTA DE MADEIRA PARA PINTURA, SEMI-OCA (LEVE OU MÉDIA), PADRÃO MÉDIO, 70X210CM, ESPESSURA DE 3,5CM, ITENS INCLUSOS: DOBRADIÇAS, MONTAGEM E INSTALAÇÃO DO BATENTE, FECHADURA COM EXECUÇÃO DO FURO - FORNECIMENTO E INSTALAÇÃO. CONSIDERANDO ADICIONAL NOTURNO E HORA EXTRA | E65: UNID. | F65: 6 | G65: 1228.2 | H65: 1550.47968 | I65: 9302.88 | J65: 1228.2 | K65: 982.56 | L65: 0.25 | M65: ='[1]PO FINAL'!I65 -> 9923.07 | N65: -620.19
A66: 5.8 | B66: CPU | C66: ED-50507 | D66: LIXAMENTO MANUAL EM SUPERFÍCIE DE MADEIRA PARA REMOÇÃO DE TINTA, CONSIDERANDO ADICIONAL NOTURNO E HORA EXTRA | E66: M2 | F66: 92.2 | G66: 5.885714286 | H66: 7.430125714 | I66: 685.06 | J66: =K66/$K$3 -> 5.885714286 | K66: 4.12 | L66: 0.4285714286 | M66: ='[1]PO FINAL'!I66 -> 639.39 | N66: 45.67
A67: 5.9 | B67: CPU | C67: 100717 | D67: LIXAMENTO MANUAL EM SUPERFÍCIES METÁLICAS EM OBRA. CONSIDERANDO ADICIONAL NOTURNO E HORA EXTRA | E67: M2 | F67: 7.15 | G67: 12.87142857 | H67: 16.24889143 | I67: 116.18 | J67: 12.87142857 | K67: 9.01 | L67: 0.4285714286 | M67: ='[1]PO FINAL'!I67 -> 108.43 | N67: 7.75
A68: 5.10 | B68: CPU | C68: 102201 | D68: APLICAÇÃO MASSA ACRÍLICA PARA MADEIRA, PARA PINTURA COM TINTA DE ACABAMENTO (PIGMENTADA). CONSIDERANDO ADICIONAL NOTURNO E HORA EXTRA | E68: M2 | F68: 92.2 | G68: 23.1125 | H68: 29.17722 | I68: 2690.14 | J68: =K68/$K$4 -> 23.1125 | K68: 18.49 | L68: 0.25 | M68: ='[1]PO FINAL'!I68 -> 2869.48 | N68: -179.34
A69: 5.11 | B69: CPU | C69: CPU056 | D69: RESTAURAÇÃO DE ESQUADRIAS CONTEMPLANDO TROCA DE MADEIRA, CONSIDERANDO HORA EXTRA | E69: M2 | F69: 23.5 | G69: 935.3368 | H69: 1180.769176 | I69: 27748.08 | J69: =[1]CPU!H972 -> 935.3368 | M69: ='[1]PO FINAL'!I69 -> 27748.08 | N69: 0
A70: 5.12 | B70: CPU | C70: ED-50493 | D70: PINTURA ESMALTE EM ESQUADRIA DE MADEIRA, DUAS (2) DEMÃOS, INCLUSIVE UMA (1) DEMÃO DE FUNDO NIVELADOR, EXCLUSIVE MASSA A ÓLEO, CONSIDERANDO ADICIONAL NOTURNO E HORA EXTRA | E70: M2 | F70: 143.45 | G70: 27.4375 | H70: 34.6371 | I70: 4968.69 | J70: =K70/$K$4 -> 27.4375 | K70: 21.95 | L70: =J70/K70-1 -> 0.25 | M70: ='[1]PO FINAL'!I70 -> 5299.94 | N70: -331.25
A71: 5.13 | B71: SETOP | C71: ED-50532 | D71: PINTURA ANTICORROSIVA A BASE DE ÓXIDO DE FERRO (ZARCÃO) EM ESQUADRIA E SUPERFÍCIE METÁLICA, UMA (1) DEMÃO, CONSIDERANDO ADICIONAL NOTURNO E HORA EXTRA | E71: M2 | F71: 7.15 | G71: 13.8875 | H71: 17.53158 | I71: 125.35 | J71: 13.8875 | K71: 11.11 | L71: =J71/K71-1 -> 0.25 | M71: ='[1]PO FINAL'!I71 -> 133.71 | N71: -8.36
A72: 5.14 | B72: SINAPI | C72: 102151 | D72: INSTALAÇÃO DE VIDRO LISO INCOLOR, E = 3 MM, EM ESQUADRIA DE MADEIRA, FIXADO COM BAGUETE. CONSIDERANDO ADICIONAL NOTURNO E HORA EXTRA | E72: M2 | F72: 59 | G72: 190.825 | H72: 240.89748 | I72: 14212.95 | J72: 190.825 | K72: 152.66 | L72: =J72/K72-1 -> 0.25 | M72: ='[1]PO FINAL'!I72 -> 15160.48 | N72: -947.53
A73: 6 | D73: MÓVEIS PLANEJADOS | I73: =SUM(I74:I90) -> 118496.45 | M73: ='[1]PO FINAL'!I73 -> 103235.32 | N73: 15261.13
A74: 6.1 | B74: CPU | C74: CPU012 | D74: MÓVEL PLANEJADO EM MDF PARA ESCRITÓRIO DM1, CONFORME PROJETO - FORNECIMENTO E INSTALAÇÃO, CONSIDERANDO ADICIONAL NOTURNO E HORA EXTRA | E74: UNID. | F74: 1 | G74: =(J74) -> 4630.4224 | H74: =(J74*(1+G$4)) -> 5845.445238 | I74: =ROUND(F74*H74,2) -> 5845.45 | J74: =CPU!H220 -> 4630.4224 | M74: ='[1]PO FINAL'!I74 -> 4858.92 | N74: =I74-M74 -> 986.53
A75: 6.2 | B75: CPU | C75: CPU013 | D75: MÓVEL PLANEJADO EM MDF PARA ESCRITÓRIO DM2, CONFORME PROJETO - FORNECIMENTO E INSTALAÇÃO, CONSIDERANDO ADICIONAL NOTURNO E HORA EXTRA | E75: UNID. | F75: 1 | G75: =(J75) -> 4827.6706 | H75: 6094.451365 | I75: =ROUND(F75*H75,2) -> 6094.45 | J75: =CPU!H238 -> 4827.6706 | M75: ='[1]PO FINAL'!I75 -> 5270.72 | N75: 823.73
A76: 6.3 | B76: CPU | C76: CPU014 | D76: MÓVEL PLANEJADO EM MDF PARA ESCRITÓRIO DM3, CONFORME PROJETO - FORNECIMENTO E INSTALAÇÃO, CONSIDERANDO ADICIONAL NOTURNO E HORA EXTRA | E76: UNID. | F76: 1 | G76: 4752.7878 | H76: 5999.919319 | I76: 5999.92 | J76: =CPU!H256 -> 4752.7878 | M76: ='[1]PO FINAL'!I76 -> 5217.11 | N76: 782.81
A77: 6.4 | B77: CPU | C77: CPU015 | D77: MÓVEL PLANEJADO EM MDF PARA ESCRITÓRIO DM4, CONFORME PROJETO - FORNECIMENTO E INSTALAÇÃO, CONSIDERANDO ADICIONAL NOTURNO E HORA EXTRA | E77: UNID. | F77: 1 | G77: 2970.2646 | H77: 3749.662031 | I77: 3749.66 | J77: =CPU!H275 -> 2970.2646 | M77: ='[1]PO FINAL'!I77 -> 3308.15 | N77: 441.51
A78: 6.5 | B78: CPU | C78: CPU016 | D78: MÓVEL PLANEJADO EM MDF PARA ESCRITÓRIO DM5, CONFORME PROJETO - FORNECIMENTO E INSTALAÇÃO, CONSIDERANDO ADICIONAL NOTURNO E HORA EXTRA | E78: UNID. | F78: 1 | G78: 8662.471 | H78: 10935.50339 | I78: 10935.5 | J78: =CPU!H293 -> 8662.471 | M78: ='[1]PO FINAL'!I78 -> 10074.34 | N78: 861.16
A79: 6.6 | B79: CPU | C79: CPU017 | D79: MÓVEL PLANEJADO EM MDF PARA ESCRITÓRIO DM6, CONFORME PROJETO - FORNECIMENTO E INSTALAÇÃO, CONSIDERANDO ADICIONAL NOTURNO E HORA EXTRA | E79: UNID. | F79: 1 | G79: 10704.402 | H79: 13513.23708 | I79: 13513.24 | J79: =CPU!H312 -> 10704.402 | M79: ='[1]PO FINAL'!I79 -> 11910.08 | N79: 1603.16
A80: 6.7 | B80: CPU | C80: CPU018 | D80: MÓVEL PLANEJADO EM MDF PARA ESCRITÓRIO DM7-1, CONFORME PROJETO - FORNECIMENTO E INSTALAÇÃO, CONSIDERANDO ADICIONAL NOTURNO E HORA EXTRA | E80: UNID. | F80: 1 | G80: 2585.5925 | H80: 3264.051972 | I80: 3264.05 | J80: =CPU!H331 -> 2585.5925 | M80: ='[1]PO FINAL'!I80 -> 2794.3 | N80: 469.75
A81: 6.8 | B81: CPU | C81: CPU019 | D81: MÓVEL PLANEJADO EM MDF PARA ESCRITÓRIO DM7-2, CONFORME PROJETO - FORNECIMENTO E INSTALAÇÃO, CONSIDERANDO ADICIONAL NOTURNO E HORA EXTRA | E81: UNID. | F81: 1 | G81: 3669.0916 | H81: 4631.861236 | I81: 4631.86 | J81: =CPU!H350 -> 3669.0916 | M81: ='[1]PO FINAL'!I81 -> 4005.56 | N81: 626.3
A82: 6.9 | B82: CPU | C82: CPU020 | D82: MÓVEL PLANEJADO EM MDF PARA ESCRITÓRIO DM8, CONFORME PROJETO - FORNECIMENTO E INSTALAÇÃO, CONSIDERANDO ADICIONAL NOTURNO E HORA EXTRA | E82: UNID. | F82: 1 | G82: 3678.7084 | H82: 4644.001484 | I82: 4644 | J82: =CPU!H369 -> 3678.7084 | M82: ='[1]PO FINAL'!I82 -> 4019.05 | N82: 624.95
A83: 6.10 | B83: CPU | C83: CPU021 | D83: MÓVEL PLANEJADO EM MDF PARA ESCRITÓRIO DM9, CONFORME PROJETO - FORNECIMENTO E INSTALAÇÃO, CONSIDERANDO ADICIONAL NOTURNO E HORA EXTRA | E83: UNID. | F83: 1 | G83: 7755.9753 | H83: 9791.143219 | I83: 9791.14 | J83: =CPU!H387 -> 7755.9753 | M83: ='[1]PO FINAL'!I83 -> 8468.6 | N83: 1322.54
A84: 6.11 | B84: CPU | C84: CPU022 | D84: MÓVEL PLANEJADO EM MDF PARA ESCRITÓRIO DM10, CONFORME PROJETO - FORNECIMENTO E INSTALAÇÃO, CONSIDERANDO ADICIONAL NOTURNO E HORA EXTRA | E84: UNID. | F84: 1 | G84: 7643.3732 | H84: 9648.994328 | I84: 9648.99 | J84: =CPU!H405 -> 7643.3732 | M84: ='[1]PO FINAL'!I84 -> 8346.07 | N84: 1302.92
A85: 6.12 | B85: CPU | C85: CPU023 | D85: MÓVEL PLANEJADO EM MDF PARA ESCRITÓRIO DM11, CONFORME PROJETO - FORNECIMENTO E INSTALAÇÃO, CONSIDERANDO ADICIONAL NOTURNO E HORA EXTRA | E85: UNID. | F85: 1 | G85: 3681.6804 | H85: 4647.753337 | I85: 4647.75 | J85: =CPU!H424 -> 3681.6804 | M85: ='[1]PO FINAL'!I85 -> 4033.91 | N85: 613.84
A86: 6.13 | B86: CPU | C86: CPU024 | D86: MÓVEL PLANEJADO EM MDF PARA ESCRITÓRIO DM12, CONFORME PROJETO - FORNECIMENTO E INSTALAÇÃO, CONSIDERANDO ADICIONAL NOTURNO E HORA EXTRA | E86: UNID. | F86: 1 | G86: 6261.3965 | H86: 7904.386942 | I86: 7904.39 | J86: =CPU!H442 -> 6261.3965 | M86: ='[1]PO FINAL'!I86 -> 6834.99 | N86: 1069.4
A87: 6.14 | B87: CPU | C87: CPU025 | D87: MÓVEL PLANEJADO EM MDF PARA ESCRITÓRIO DM13, CONFORME PROJETO - FORNECIMENTO E INSTALAÇÃO, CONSIDERANDO ADICIONAL NOTURNO E HORA EXTRA | E87: UNID. | F87: 1 | G87: 6976.478 | H87: 8807.105827 | I87: 8807.11 | J87: =CPU!H460 -> 6976.478 | M87: ='[1]PO FINAL'!I87 -> 7617.31 | N87: 1189.8
A88: 6.15 | B88: CPU | C88: CPU026 | D88: MÓVEL PLANEJADO EM MDF PARA ESCRITÓRIO DM14, CONFORME PROJETO - FORNECIMENTO E INSTALAÇÃO, CONSIDERANDO ADICIONAL NOTURNO E HORA EXTRA | E88: UNID. | F88: 1 | G88: 10766.6128 | H88: 13591.772 | I88: 13591.77 | J88: =CPU!H479 -> 10766.6128 | M88: ='[1]PO FINAL'!I88 -> 11812.06 | N88: 1779.71
A89: 6.16 | B89: CPU | C89: CPU027 | D89: MÓVEL PLANEJADO EM MDF PARA ESCRITÓRIO DM15, CONFORME PROJETO - FORNECIMENTO E INSTALAÇÃO, CONSIDERANDO ADICIONAL NOTURNO E HORA EXTRA | E89: UNID. | F89: 1 | G89: 2449.34 | H89: 3092.046816 | I89: 3092.05 | J89: =CPU!H497 -> 2449.34 | M89: ='[1]PO FINAL'!I89 -> 2603.18 | N89: 488.87
A90: 6.17 | B90: CPU | C90: CPU028 | D90: MÓVEL PLANEJADO EM MDF PARA ESCRITÓRIO DM16, CONFORME PROJETO - FORNECIMENTO E INSTALAÇÃO, CONSIDERANDO ADICIONAL NOTURNO E HORA EXTRA | E90: UNID. | F90: 1 | G90: 1849.7463 | H90: 2335.119729 | I90: 2335.12 | J90: =CPU!H516 -> 1849.7463 | M90: ='[1]PO FINAL'!I90 -> 2060.97 | N90: 274.15
A91: 7 | D91: INSTALAÇÕES PREDIAIS | I91: =SUM(I92:I93) -> 34763.37 | M91: ='[1]PO FINAL'!I91 -> 29548.87 | N91: 5214.5
A92: 7.1 | B92: CPU | C92: CPU005 | D92: EXECUÇÃO DE INSTALAÇÕES HIDROSSANITÁRIAS, EXCLUSIVE EQUIPAMENTOS, CONSIDERANDO ADICIONAL NOTURNO E HORA EXTRA | E92: CJ. | F92: 1 | G92: =(J92) -> 13467.88235 | H92: 17001.85468 | I92: =ROUND(F92*H92,2) -> 17001.85 | J92: =CPU!H74 -> 13467.88235 | M92: ='[1]PO FINAL'!I92 -> 14451.58 | N92: 2550.27
A93: 7.2 | B93: CPU | C93: CPU038 | D93: EXECUÇÃO DE INSTALAÇÕES ELÉTRICAS, EXCLUSIVE EQUIPAMENTOS, CONSIDERANDO ADICIONAL NOTURNO E HORA EXTRA | E93: CJ. | F93: 1 | G93: 14069.64706 | H93: 17761.52245 | I93: =ROUND(F93*H93,2) -> 17761.52 | J93: =CPU!H709 -> 14069.64706 | M93: ='[1]PO FINAL'!I93 -> 15097.29 | N93: 2664.23
A94: 8 | D94: MATERIAIS | I94: =SUM(I95:I160) -> 114664.48 | M94: ='[1]PO FINAL'!I94 -> 115248.81 | N94: -584.33
A95: 8.1 | B95: SINAPI | C95: 9868 | D95: TUBO PVC, SOLDAVEL, DN 25 MM, AGUA FRIA (NBR-5648) | E95: M | F95: 63 | G95: =K95 -> 4.31 | H95: =G95*(1+G$5) -> 4.968568 | I95: =ROUND(F95*H95,2) -> 313.02 | J95: 5.48 | K95: 4.31 | L95: =K95-J95 -> -1.17 | M95: ='[1]PO FINAL'!I95 -> 313.02 | N95: 0
A96: 8.2 | B96: SINAPI | C96: 9875 | D96: TUBO PVC, SOLDAVEL, DN 50 MM, PARA AGUA FRIA (NBR-5648) | E96: M | F96: 1 | G96: =K96 -> 16.02 | H96: =G96*(1+G$5) -> 18.467856 | I96: 18.47 | J96: 20.52 | K96: 16.02 | L96: =K96-J96 -> -4.5 | M96: ='[1]PO FINAL'!I96 -> 18.47 | N96: 0
A97: 8.3 | B97: SINAPI | C97: 9871 | D97: TUBO PVC, SOLDAVEL, DN 75 MM, AGUA FRIA (NBR-5648) | E97: M | F97: 15 | G97: 43.67 | H97: =G97*(1+G$5) -> 50.342776 | I97: 755.14 | J97: 58 | K97: 43.67 | L97: -14.33 | M97: ='[1]PO FINAL'!I97 -> 755.14 | N97: 0
A98: 8.4 | B98: SINAPI | C98: 9835 | D98: TUBO PVC SERIE NORMAL, DN 40 MM, PARA ESGOTO PREDIAL (NBR 5688) | E98: M | F98: 14 | G98: 6.9 | H98: 7.95432 | I98: 111.36 | J98: 6.73 | K98: 6.9 | L98: 0.17 | M98: ='[1]PO FINAL'!I98 -> 111.36 | N98: 0
A99: 8.5 | B99: SINAPI | C99: 9838 | D99: TUBO PVC SERIE NORMAL, DN 50 MM, PARA ESGOTO PREDIAL (NBR 5688) | E99: M | F99: 17 | G99: 11.4 | H99: 13.14192 | I99: 223.41 | J99: 11.46 | K99: 11.4 | L99: -0.06 | M99: ='[1]PO FINAL'!I99 -> 223.41 | N99: 0
A100: 8.6 | B100: SINAPI | C100: 9837 | D100: TUBO PVC SERIE NORMAL, DN 75 MM, PARA ESGOTO PREDIAL (NBR 5688) | E100: M | F100: 2 | G100: 14.96 | H100: 17.245888 | I100: 34.49 | J100: 16.55 | K100: 14.96 | L100: -1.59 | M100: ='[1]PO FINAL'!I100 -> 34.49 | N100: 0
A101: 8.7 | B101: SINAPI | C101: 9836 | D101: TUBO PVC SERIE NORMAL, DN 100 MM, PARA ESGOTO PREDIAL (NBR 5688) | E101: M | F101: 22 | G101: 15.8 | H101: 18.21424 | I101: 400.71 | J101: 16.67 | K101: 15.8 | L101: -0.87 | M101: ='[1]PO FINAL'!I101 -> 400.71 | N101: 0
A102: 8.8 | B102: SINAPI | C102: 3529 | D102: JOELHO PVC, SOLDAVEL, 90 GRAUS, 25 MM, PARA AGUA FRIA PREDIAL | E102: UNID. | F102: 15 | G102: 0.75 | H102: 0.8646 | I102: 12.97 | J102: 1.08 | K102: 0.75 | L102: -0.33 | M102: ='[1]PO FINAL'!I102 -> 12.97 | N102: 0
A103: 8.9 | B103: SINAPI | C103: 3515 | D103: JOELHO PVC, SOLDAVEL, COM BUCHA DE LATAO, 90 GRAUS, 20 MM X 1/2", PARA AGUA FRIA PREDIAL | E103: UNID. | F103: 12 | G103: 6.76 | H103: 7.792928 | I103: 93.52 | J103: 8.38 | K103: 6.76 | L103: -1.62 | M103: ='[1]PO FINAL'!I103 -> 93.52 | N103: 0
A104: 8.10 | B104: SINAPI | C104: 7104 | D104: TE DE REDUCAO, PVC, SOLDAVEL, 90 GRAUS, 25 MM X 20 MM, PARA AGUA FRIA PREDIAL | E104: UNID. | F104: 1 | G104: 3.98 | H104: 4.588144 | I104: 4.59 | J104: 4.81 | K104: 3.98 | L104: -0.83 | M104: ='[1]PO FINAL'!I104 -> 4.59 | N104: 0
A105: 8.11 | B105: SINAPI | C105: 7139 | D105: TE SOLDAVEL, PVC, 90 GRAUS, 25 MM, PARA AGUA FRIA PREDIAL (NBR 5648) | E105: UNID. | F105: 7 | G105: 1.25 | H105: 1.441 | I105: 10.09 | J105: 1.83 | K105: 1.25 | L105: -0.58 | M105: ='[1]PO FINAL'!I105 -> 10.09 | N105: 0
A106: 8.12 | B106: SINAPI | C106: 7122 | D106: TE PVC, SOLDAVEL, COM BUCHA DE LATAO NA BOLSA CENTRAL, 90 GRAUS, 25 MM X 3/4", PARA AGUA FRIA PREDIAL | E106: UNID. | F106: 13 | G106: 11.43 | H106: 13.176504 | I106: 171.29 | J106: 16.23 | K106: 11.43 | L106: -4.8 | M106: ='[1]PO FINAL'!I106 -> 171.29 | N106: 0
A107: 8.13 | B107: SINAPI | C107: 6138 | D107: ANEL DE VEDACAO, PVC FLEXIVEL, 100 MM, PARA SAIDA DE BACIA / VASO SANITARIO | E107: UNID. | F107: 12 | G107: 9.62 | H107: 11.089936 | I107: 133.08 | J107: 11.43 | K107: 9.62 | L107: -1.81 | M107: ='[1]PO FINAL'!I107 -> 133.08 | N107: 0
A108: 8.14 | B108: SINAPI | C108: 20086 | D108: BUCHA DE REDUCAO DE PVC, SOLDAVEL, LONGA, 50 X 40 MM, PARA ESGOTO PREDIAL | E108: UNID. | F108: 4 | G108: 3.27 | H108: 3.769656 | I108: 15.08 | J108: 2.95 | K108: 3.27 | L108: 0.32 | M108: ='[1]PO FINAL'!I108 -> 15.08 | N108: 0
A109: 8.15 | B109: SINAPI | C109: 37951 | D109: JOELHO PVC, SOLDAVEL, PB, 45 GRAUS, DN 40 MM, PARA ESGOTO PREDIAL | E109: UNID. | F109: 6 | G109: 2.61 | H109: 3.008808 | I109: 18.05 | J109: 2.73 | K109: 2.61 | L109: -0.12 | M109: ='[1]PO FINAL'!I109 -> 18.05 | N109: 0
A110: 8.16 | B110: SINAPI | C110: 3518 | D110: JOELHO PVC, SOLDAVEL, PB, 45 GRAUS, DN 50 MM, PARA ESGOTO PREDIAL | E110: UNID. | F110: 9 | G110: 4.02 | H110: 4.634256 | I110: 41.71 | J110: 4 | K110: 4.02 | L110: 0.02 | M110: ='[1]PO FINAL'!I110 -> 41.71 | N110: 0
A111: 8.17 | B111: SINAPI | C111: 3519 | D111: JOELHO PVC, SOLDAVEL, PB, 45 GRAUS, DN 75 MM, PARA ESGOTO PREDIAL | E111: UNID. | F111: 4 | G111: 8.4 | H111: 9.68352 | I111: 38.73 | J111: 9.47 | K111: 8.4 | L111: -1.07 | M111: ='[1]PO FINAL'!I111 -> 38.73 | N111: 0
A112: 8.18 | B112: SINAPI | C112: 3528 | D112: JOELHO PVC, SOLDAVEL, PB, 45 GRAUS, DN 100 MM, PARA ESGOTO PREDIAL | E112: UNID. | F112: 5 | G112: 9.69 | H112: 11.170632 | I112: 55.85 | J112: 10.54 | K112: 9.69 | L112: -0.85 | M112: ='[1]PO FINAL'!I112 -> 55.85 | N112: 0
A113: 8.19 | B113: SINAPI | C113: 10835 | D113: JOELHO PVC, COM BOLSA E ANEL, 90 GRAUS, DN 40 MM, SERIE NORMAL, PARA ESGOTO PREDIAL | E113: UNID. | F113: 13 | G113: 6.01 | H113: 6.928328 | I113: 90.07 | J113: 5.12 | K113: 6.01 | L113: 0.89 | M113: ='[1]PO FINAL'!I113 -> 90.07 | N113: 0
A114: 8.20 | B114: SINAPI | C114: 37949 | D114: JOELHO PVC, SOLDAVEL, PB, 90 GRAUS, DN 40 MM, PARA ESGOTO PREDIA | E114: UNID. | F114: 13 | G114: 2.36 | H114: 2.720608 | I114: 35.37 | J114: 2.39 | K114: 2.36 | L114: -0.03 | M114: ='[1]PO FINAL'!I114 -> 35.37 | N114: 0
A115: 8.21 | B115: SINAPI | C115: 3526 | D115: JOELHO PVC, SOLDAVEL, PB, 90 GRAUS, DN 50 MM, PARA ESGOTO PREDIAL | E115: UNID. | F115: 5 | G115: 3.24 | H115: 3.735072 | I115: 18.68 | J115: 3.21 | K115: 3.24 | L115: 0.03 | M115: ='[1]PO FINAL'!I115 -> 18.68 | N115: 0
A116: 8.22 | B116: SINAPI | C116: 3509 | D116: JOELHO PVC, SOLDAVEL, PB, 90 GRAUS, DN 75 MM, PARA ESGOTO PREDIAL | E116: UNID. | F116: 4 | G116: 7.37 | H116: 8.496136 | I116: 33.98 | J116: 8.35 | K116: 7.37 | L116: -0.98 | M116: ='[1]PO FINAL'!I116 -> 33.98 | N116: 0
A117: 8.23 | B117: SINAPI | C117: 3520 | D117: JOELHO PVC, SOLDAVEL, PB, 90 GRAUS, DN 100 MM, PARA ESGOTO PREDIAL | E117: UNID. | F117: 11 | G117: 8.81 | H117: 10.156168 | I117: 111.72 | J117: 10.61 | K117: 8.81 | L117: -1.8 | M117: ='[1]PO FINAL'!I117 -> 111.72 | N117: 0
A118: 8.24 | B118: SINAPI | C118: 3666 | D118: JUNCAO SIMPLES, PVC, 45 GRAUS, DN 40 X 40 MM, SERIE NORMAL PARA ESGOTO PREDIAL | E118: UNID. | F118: 5 | G118: 4.01 | H118: 4.622728 | I118: 23.11 | J118: 4.68 | K118: 4.01 | L118: -0.67 | M118: ='[1]PO FINAL'!I118 -> 23.11 | N118: 0
A119: 8.25 | B119: SINAPI | C119: 3662 | D119: JUNCAO SIMPLES, PVC, DN 50 X 50 MM, SERIE NORMAL PARA ESGOTO PREDIAL | E119: UNID. | F119: 1 | G119: 10.45 | H119: 12.04676 | I119: 12.05 | J119: 11.3 | K119: 10.45 | L119: -0.85 | M119: ='[1]PO FINAL'!I119 -> 12.05 | N119: 0
A120: 8.26 | B120: SINAPI | C120: 3659 | D120: JUNCAO SIMPLES, PVC, DN 100 X 50 MM, SERIE NORMAL PARA ESGOTO PREDIAL | E120: UNID. | F120: 3 | G120: 19.83 | H120: 22.860024 | I120: 68.58 | J120: 20.76 | K120: 19.83 | L120: -0.93 | M120: ='[1]PO FINAL'!I120 -> 68.58 | N120: 0
A121: 8.27 | B121: SINAPI | C121: 3670 | D121: JUNCAO SIMPLES, PVC, 45 GRAUS, DN 100 X 100 MM, SERIE NORMAL PARA ESGOTO PREDIAL | E121: UNID. | F121: 9 | G121: 25.47 | H121: 29.361816 | I121: 264.26 | J121: 27.61 | K121: 25.47 | L121: -2.14 | M121: ='[1]PO FINAL'!I121 -> 264.26 | N121: 0
A122: 8.28 | B122: SINAPI | C122: 3875 | D122: LUVA SIMPLES, PVC, SOLDAVEL, DN 50 MM, SERIE NORMAL, PARA ESGOTO PREDIAL | E122: UNID. | F122: 24 | G122: 3.5 | H122: 4.0348 | I122: 96.84 | J122: 3.69 | K122: 3.5 | L122: -0.19 | M122: ='[1]PO FINAL'!I122 -> 96.84 | N122: 0
A123: 8.29 | B123: SINAPI | C123: 3898 | D123: LUVA SIMPLES, PVC, SOLDAVEL, DN 75 MM, SERIE NORMAL, PARA ESGOTO PREDIAL | E123: UNID. | F123: 12 | G123: 7.11 | H123: 8.196408 | I123: 98.36 | J123: 6.98 | K123: 7.11 | L123: 0.13 | M123: ='[1]PO FINAL'!I123 -> 98.36 | N123: 0
A124: 8.30 | B124: SINAPI | C124: 3899 | D124: LUVA SIMPLES, PVC, SOLDAVEL, DN 100 MM, SERIE NORMAL, PARA ESGOTO PREDIAL | E124: UNID. | F124: 28 | G124: 6.95 | H124: 8.01196 | I124: 224.33 | J124: 8.09 | K124: 6.95 | L124: -1.14 | M124: ='[1]PO FINAL'!I124 -> 224.33 | N124: 0
A125: 8.31 | B125: SINAPI | C125: 20042 | D125: REDUCAO EXCENTRICA PVC P/ ESG PREDIAL DN 75 X 50MM | E125: UNID. | F125: 3 | G125: 8.25 | H125: 9.5106 | I125: 28.53 | J125: 8.01 | K125: 8.25 | L125: 0.24 | M125: ='[1]PO FINAL'!I125 -> 28.53 | N125: 0
A126: 8.32 | B126: SINAPI | C126: 7097 | D126: TE SANITARIO, PVC, DN 50 X 50 MM, SERIE NORMAL, PARA ESGOTO PREDIAL | E126: UNID. | F126: 5 | G126: 7.96 | H126: 9.176288 | I126: 45.88 | J126: 9.05 | K126: 7.96 | L126: -1.09 | M126: ='[1]PO FINAL'!I126 -> 45.88 | N126: 0
A127: 8.33 | B127: SINAPI | C127: 11658 | D127: TE SANITARIO, PVC, DN 75 X 75 MM, SERIE NORMAL, PARA ESGOTO PREDIAL | E127: UNID. | F127: 1 | G127: 17.6 | H127: 20.28928 | I127: 20.29 | J127: 18.08 | K127: 17.6 | L127: -0.48 | M127: ='[1]PO FINAL'!I127 -> 20.29 | N127: 0
A128: 8.34 | B128: SINAPI | C128: 10422 | D128: BACIA SANITARIA (VASO) COM CAIXA ACOPLADA, SIFAO APARENTE, DE LOUCA BRANCA (SEM ASSENTO) | E128: UNID. | F128: 14 | G128: 390.66 | H128: 450.352848 | I128: 6304.94 | J128: 368.23 | K128: 390.66 | L128: 22.43 | M128: ='[1]PO FINAL'!I128 -> 6304.94 | N128: 0
A129: 8.35 | B129: SINAPI | C129: 11712 | D129: CAIXA SIFONADA PVC, 150 X 150 X 50 MM, COM GRELHA QUADRADA BRANCA (NBR 5688) | E129: UNID. | F129: 5 | G129: 37.4 | H129: 43.11472 | I129: 215.57 | J129: 44.45 | K129: 37.4 | L129: -7.05 | M129: ='[1]PO FINAL'!I129 -> 215.57 | N129: 0
A130: 8.36 | B130: SINAPI | C130: 20269 | D130: LAVATORIO / CUBA DE EMBUTIR, OVAL, DE LOUCA BRANCA, SEM LADRAO, DIMENSOES *50 X 35* CM (L X C) | E130: UNID. | F130: 11 | G130: 98.32 | H130: 113.343296 | I130: 1246.78 | J130: 92.68 | K130: 98.32 | L130: 5.64 | M130: ='[1]PO FINAL'!I130 -> 1246.78 | N130: 0
A131: 8.37 | B131: SINAPI | C131: 1744 | D131: CUBA ACO INOX (AISI 304) DE EMBUTIR COM VALVULA 3 1/2 ", DE *40 X 34 X 12* CM | E131: UNID. | F131: 1 | G131: 132.55 | H131: 152.80364 | I131: 152.8 | J131: 130.12 | K131: 132.55 | L131: 2.43 | M131: ='[1]PO FINAL'!I131 -> 152.8 | N131: 0
A132: 8.38 | B132: SINAPI | C132: 36521 | D132: LAVATORIO DE CANTO LOUCA BRANCA SUSPENSO *40 X 30* CM | E132: UNID. | F132: 2 | G132: 156.46 | H132: 180.367088 | I132: 360.73 | J132: 147.47 | K132: 156.46 | L132: 8.99 | M132: ='[1]PO FINAL'!I132 -> 360.73 | N132: 0
A133: 8.39 | B133: SINAPI | C133: 11683 | D133: ENGATE / RABICHO FLEXIVEL INOX 1/2 " X 30 CM | E133: UNID. | F133: 25 | G133: 55.92 | H133: 64.464576 | I133: 1611.61 | J133: 41.28 | K133: 55.92 | L133: 14.64 | M133: ='[1]PO FINAL'!I133 -> 1611.61 | N133: 0
A134: 8.40 | B134: SINAPI | C134: 11735 | D134: PROLONGAMENTO / PROLONGADOR PARA CAIXA SIFONADA, PVC, 100 MM X 200 MM (NBR 5688) | E134: UNID. | F134: 5 | G134: 7.86 | H134: 9.061008 | I134: 45.31 | J134: 9.35 | K134: 7.86 | L134: -1.49 | M134: ='[1]PO FINAL'!I134 -> 45.31 | N134: 0
A135: 8.41 | B135: COTAÇÃO | D135: REGISTRO DE GAVETA PVC 25 MM | E135: UNID. | F135: 9 | G135: 61.33755 | H135: 70.70992764 | I135: 636.39 | J135: =46.38*1.15 -> 53.337 | K135: =J135*1.15 -> 61.33755 | L135: 8.00055 | M135: ='[1]PO FINAL'!I135 -> 636.39 | N135: 0
A136: 8.42 | B136: SINAPI | C136: 6145 | D136: SIFAO PLASTICO TIPO COPO PARA PIA AMERICANA 1.1/2 X 1.1/2 " | E136: UNID. | F136: 1 | G136: 19.62 | H136: 22.617936 | I136: 22.62 | J136: 18.61 | K136: 19.62 | L136: 1.01 | M136: ='[1]PO FINAL'!I136 -> 22.62 | N136: 0
A137: 8.43 | B137: SINAPI | C137: 6149 | D137: SIFAO PLASTICO TIPO COPO PARA PIA OU LAVATORIO, 1 X 1.1/2 " | E137: UNID. | F137: 11 | G137: 12.97 | H137: 14.951816 | I137: 164.47 | J137: 12.3 | K137: 12.97 | L137: 0.67 | M137: ='[1]PO FINAL'!I137 -> 164.47 | N137: 0
A138: 8.44 | B138: SINAPI | C138: 6146 | D138: SIFAO PLASTICO TIPO COPO PARA TANQUE, 1.1/4 X 1.1/2 " | E138: UNID. | F138: 1 | G138: 18.65 | H138: 21.49972 | I138: 21.5 | J138: 17.68 | K138: 18.65 | L138: 0.97 | M138: ='[1]PO FINAL'!I138 -> 21.5 | N138: =I138-M138 -> 0
A139: 8.45 | B139: SINAPI | C139: 6148 | D139: SIFAO PLASTICO FLEXIVEL SAIDA VERTICAL PARA COLUNA LAVATORIO, 1 X 1.1/2 " | E139: UNID. | F139: 2 | G139: 61.2 | H139: 70.55136 | I139: 141.1 | J139: 19.85 | K139: 61.2 | L139: 41.35 | M139: ='[1]PO FINAL'!I139 -> 141.1 | N139: 0
A140: 8.46 | B140: COTAÇÃO | D140: FOGÃO COOKTOP DE VIDRO COM 2 QUEIMADORES A GÁS | E140: UNID. | F140: 1 | G140: 366.8385 | H140: 422.8914228 | I140: 422.89 | J140: =318.99 -> 318.99 | K140: =J140*1.15 -> 366.8385 | L140: 47.8485 | M140: ='[1]PO FINAL'!I140 -> 422.89 | N140: 0
A141: 8.47 | B141: SINAPI | C141: 10423 | D141: TANQUE DE LOUCA BRANCA, SUSPENSO, *20* L | E141: UNID. | F141: 1 | G141: 400.3 | H141: 461.46584 | I141: 461.47 | J141: 377.32 | K141: 400.3 | L141: 22.98 | M141: ='[1]PO FINAL'!I141 -> 461.47 | N141: 0
A142: 8.48 | B142: SINAPI | C142: 11762 | D142: TORNEIRA METALICA CROMADA PARA TANQUE, COM BICO PLASTICO, CANO LONGO, DE PAREDE USO GERAL , 1/2 " OU 3/4 " | E142: UNID. | F142: 1 | G142: 55.98 | H142: 64.533744 | I142: 64.53 | J142: 46 | K142: 55.98 | L142: 9.98 | M142: ='[1]PO FINAL'!I142 -> 64.53 | N142: 0
A143: 8.49 | B143: SINAPI | C143: 39702 | D143: TORNEIRA DE MESA PARA LAVATORIO, METALICA CROMADA, COM SENSOR DE APROXIMACAO ELETRICO | E143: UNID. | F143: =9+4 -> 13 | G143: 2075.79 | H143: 2392.970712 | I143: 31108.62 | J143: 1705.71 | K143: 2075.79 | L143: 370.08 | M143: ='[1]PO FINAL'!I143 -> 31108.62 | N143: 0
A144: 8.50 | B144: SINAPI | C144: 1014 | D144: CABO DE COBRE, FLEXIVEL, CLASSE 4 OU 5, ISOLACAO EM PVC/A, ANTICHAMA BWF-B, 1 CONDUTOR, 450/750 V, SECAO NOMINAL 2,5 MM2 | E144: M | F144: 2000 | G144: 1.87 | H144: 2.155736 | I144: 4311.47 | J144: 1.97 | K144: 1.87 | L144: -0.1 | M144: ='[1]PO FINAL'!I144 -> 4311.47 | N144: 0
A145: 8.51 | B145: SINAPI | C145: 1013 | D145: CABO DE COBRE, FLEXIVEL, CLASSE 4 OU 5, ISOLACAO EM PVC/A, ANTICHAMA BWF-B, 1 CONDUTOR, 450/750 V, SECAO NOMINAL 1,5 MM2 | E145: M | F145: 300 | G145: 1.18 | H145: 1.360304 | I145: 408.09 | J145: 1.24 | K145: 1.18 | L145: -0.06 | M145: ='[1]PO FINAL'!I145 -> 408.09 | N145: 0
A146: 8.52 | B146: SINAPI | C146: 2674 | D146: ELETRODUTO DE PVC RIGIDO ROSCAVEL DE 3/4 ", SEM LUVA | E146: M | F146: 400 | G146: 5.43 | H146: 6.259704 | I146: 2503.88 | J146: 6.01 | K146: 5.43 | L146: -0.58 | M146: ='[1]PO FINAL'!I146 -> 2503.88 | N146: 0
A147: 8.53 | B147: COTAÇÃO | D147: ELETROCALHA PERFURADA 50X50 | E147: M | F147: 50 | G147: 24.87795 | H147: 28.67930076 | I147: 1433.97 | J147: =21.633 -> 21.633 | K147: =J147*1.15 -> 24.87795 | L147: 3.24495 | M147: ='[1]PO FINAL'!I147 -> 1433.97 | N147: 0
A148: 8.54 | B148: SINAPI | C148: 43096 | D148: CAIXA DE PASSAGEM ELETRICA DE PAREDE, DE EMBUTIR, EM TERMOPLASTICO / PVC, COM TAMPA APARAFUSADA, DIMENSOES 400 X 400 X *120* MM | E148: UNID. | F148: 102 | G148: 240.72 | H148: 277.502016 | I148: 28305.21 | J148: 224.99 | K148: 240.72 | L148: 15.73 | M148: ='[1]PO FINAL'!I148 -> 28305.21 | N148: 0
A149: 8.55 | B149: SINAPI | C149: 38062 | D149: INTERRUPTOR SIMPLES 10A, 250V, CONJUNTO MONTADO PARA EMBUTIR 4" X 2" (PLACA + SUPORTE + MODULO) | E149: UNID. | F149: 35 | G149: 6.75 | H149: 7.7814 | I149: 272.35 | J149: 7.48 | K149: 6.75 | L149: -0.73 | M149: ='[1]PO FINAL'!I149 -> 272.35 | N149: 0
A150: 8.56 | B150: SINAPI | C150: 38101 | D150: TOMADA 2P+T 10A, 250V (APENAS MODULO) | E150: UNID. | F150: 30 | G150: 7.78 | H150: 8.968784 | I150: 269.06 | J150: 8.3 | K150: 7.78 | L150: -0.52 | M150: ='[1]PO FINAL'!I150 -> 269.06 | N150: 0
A151: 8.57 | B151: SINAPI | C151: 34653 | D151: DISJUNTOR TIPO DIN/IEC, MONOPOLAR DE 6 ATE 32A | E151: UNID. | F151: 12 | G151: 14.28 | H151: 16.461984 | I151: 197.54 | J151: 15.63 | K151: 14.28 | L151: -1.35 | M151: ='[1]PO FINAL'!I151 -> 197.54 | N151: 0
A152: 8.58 | B152: SINAPI | C152: 34616 | D152: DISJUNTOR TIPO DIN/IEC, BIPOLAR DE 6 ATE 32A | E152: UNID. | F152: 14 | G152: 81.88 | H152: 94.391264 | I152: 1321.48 | J152: 89.62 | K152: 81.88 | L152: -7.74 | M152: ='[1]PO FINAL'!I152 -> 1321.48 | N152: 0
A153: 8.59 | B153: SINAPI | C153: 39445 | D153: DISPOSITIVO DR, 2 POLOS, SENSIBILIDADE DE 30 MA, CORRENTE DE 25 A, TIPO AC | E153: UNID. | F153: 9 | G153: 219.94 | H153: 253.546832 | I153: 2281.92 | J153: 240.75 | K153: 219.94 | L153: -20.81 | M153: ='[1]PO FINAL'!I153 -> 2281.92 | N153: 0
A154: 8.60 | B154: SINAPI | C154: 2373 | D154: DISJUNTOR TIPO NEMA, TRIPOLAR 60 ATE 100 A, TENSAO MAXIMA DE 415 V | E154: UNID. | F154: 1 | G154: 174.97 | H154: 201.705416 | I154: 201.71 | J154: 191.52 | K154: 174.97 | L154: -16.55 | M154: ='[1]PO FINAL'!I154 -> 201.71 | N154: 0
A155: 8.61 | B155: SINAPI | C155: 39469 | D155: DISPOSITIVO DPS CLASSE II, 1 POLO, TENSAO MAXIMA DE 275 V, CORRENTE MAXIMA DE *20* KA (TIPO AC) | E155: UNID. | F155: 3 | G155: 111.37 | H155: 128.387336 | I155: 385.16 | J155: 121.9 | K155: 111.37 | L155: -10.53 | M155: ='[1]PO FINAL'!I155 -> 385.16 | N155: 0
A156: 8.62 | B156: SINAPI | C156: 39807 | D156: QUADRO DE DISTRIBUICAO, EM PVC, DE EMBUTIR, COM BARRAMENTO TERRA / NEUTRO, PARA 27 DISJUNTORES NEMA OU 36 DISJUNTORES DIN | E156: UNID. | F156: 1 | G156: 605.2 | H156: 697.67456 | I156: 697.67 | J156: 565.66 | K156: 605.2 | L156: 39.54 | M156: ='[1]PO FINAL'!I156 -> 697.67 | N156: 0
A157: 8.63 | B157: COTAÇÃO | D157: PENDENTE MEIA LUA 50 CM PARA SALA DE REUNIÕES | E157: UNID. | F157: 3 | G157: 130.823 | H157: 150.8127544 | I157: 452.44 | J157: =118.93 -> 118.93 | K157: =J157*1.1 -> 130.823 | L157: 11.893 | M157: ='[1]PO FINAL'!I157 -> 452.44 | N157: 0
A158: 8.64 | B158: COTAÇÃO | D158: PENDENTE LED CANOA, MADEIRA ACRÍLICO | E158: UNID. | F158: 3 | G158: 4077.029 | H158: 4699.999031 | I158: 14100 | J158: =3706.39 -> 3706.39 | K158: =J158*1.1 -> 4077.029 | L158: 370.639 | M158: ='[1]PO FINAL'!I158 -> 14100 | N158: 0
A159: 8.65 | B159: SINAPI | C159: 3803 | D159: LUMINARIA PLAFON REDONDO COM VIDRO FOSCO DIAMETRO *25* CM, PARA 1 LAMPADA, BASE E27, POTENCIA MAXIMA 40/60 W (NAO INCLUI LAMPADA) | E159: UNID. | F159: 110 | G159: 65.15 | H159: 75.10492 | I159: =ROUND(F159*H159,2) -> 8261.54 | J159: 69.49 | K159: 65.15 | L159: -4.34 | M159: ='[1]PO FINAL'!I159 -> 8261.54 | N159: 0
A160: 8.66 | B160: SINAPI | C160: 37526 | D160: SACO DE RÁFIA PARA ENTULHO, NOVO, LISO (SEM CLICHE), *60 x 90* CM | E160: UNID. | F160: 800 | G160: =K160 -> 2.88 | H160: 3.320064 | I160: 2656.05 | J160: 3.11 | K160: 2.88 | L160: =K160-J160 -> -0.23 | M160: ='[1]PO FINAL'!I160 -> 3240.38 | N160: -584.33
A161: VALOR TOTAL DA OBRA DE REFORMA | I161: =I94+I91+I73+I58+I32+I17+I13+I8 -> 1299451.98

Sheet CPU
A1: MINISTÉRIO DO DESENVOLVIMENTO REGIONAL - MDR | I1: FATORES DE MAJORAÇÃO DE MÃO DE OBRA | K1: =PO!I7 -> 1299451.98
A2: COMPANHIA DE DESENVOLVIMENTO DOS VALES DO SÃO FRANCISCO E DO PARNAÍBA
A3: 1ª SUPERINTENDÊNCIA REGIONAL | I3: ARH | J3: ADOTADO | K3: ADICIONAL HE
A4: BELO HORIZONTE - MG | G4: Base SINAPI-MG 09-2023 | I4: 2 | J4: 1.5 | K4: 1 | L4: 1
A5: PROJETO DE REFORMA DO ESCRITÓRIO DA CODEVASF | G5: Data: outubro 2023 | I5: 0.6 | J5: 0.85
A6: COMPOSIÇÕES DE PREÇO UNITÁRIO | I6: 0.8 | J6: 0.85
I7: ATUALIZ. 1 | J7: 1.1
A8: COMPOSIÇÃO DE PREÇO UNITÁRIO | H8: CPU001 | I8: ATUALIZ. 2 | J8: 1.15
A9: DESCRIÇÃO DO SERVIÇO | G9: DATA BASE: | H9: 2023-09-01 | I9: DIVISÓRIAS
A10: MOBILIZAÇÃO | G10: UNIDADE: | H10: GB | I10: 0.8 | J10: 0.8
A11: EQUIPAMENTO | I11: TACO
A12: BASE | B12: CÓDIGO | C12: DISCRIMINAÇÃO | D12: UNI | E12: QUANT. | F12: P.UN.PROD | G12: P.UN.IMPR | H12: P.TOTAL | I12: 0.7 | J12: 0.75
A13: SINAPI | B13: 5811 | C13: CAMINHÃO BASCULANTE 6 M3, PESO BRUTO TOTAL 16.000 KG, CARGA ÚTIL MÁXIMA 13.071 KG, DISTÂNCIA ENTRE EIXOS 4,80 M, POTÊNCIA 230 CV INCLUSIVE CAÇAMBA METÁLICA | D13: h | E13: 5 | F13: =I13 -> 202.79 | H13: =E13*F13+E13*G13 -> 1013.95 | I13: 202.79
A14: SUB-TOTAL | H14: =SUM(H13:H13) -> 1013.95
A15: PRODUÇÃO DA EQUIPE | D15: 1 | E15: CUSTO | H15: =H14 -> 1013.95
A16: TOTAL - R$ | H16: =H15/D15 -> 1013.95
A17: BDI % | H17: 1
A18: TOTAL DO SERVIÇO - R$ | H18: =H16*H17 -> 1013.95
A20: COMPOSIÇÃO DE PREÇO UNITÁRIO | H20: CPU002
A21: DESCRIÇÃO DO SERVIÇO | G21: DATA BASE: | H21: 2023-09-01
A22: DESMOBILIZAÇÃO | G22: UNIDADE: | H22: GB
A23: EQUIPAMENTO
A24: BASE | B24: CÓDIGO | C24: DISCRIMINAÇÃO | D24: UNI | E24: QUANT. | F24: P.UN.PROD | G24: P.UN.IMPR | H24: P.TOTAL
A25: SINAPI | B25: 5811 | C25: CAMINHÃO BASCULANTE 6 M3, PESO BRUTO TOTAL 16.000 KG, CARGA ÚTIL MÁXIMA 13.071 KG, DISTÂNCIA ENTRE EIXOS 4,80 M, POTÊNCIA 230 CV INCLUSIVE CAÇAMBA METÁLICA | D25: h | E25: 5 | F25: =I25 -> 202.79 | H25: =E25*F25+E25*G25 -> 1013.95 | I25: 202.79
A26: SUB-TOTAL | H26: =SUM(H25:H25) -> 1013.95
A27: PRODUÇÃO DA EQUIPE | D27: 1 | E27: CUSTO | H27: =H26 -> 1013.95
A28: TOTAL - R$ | H28: =H27/D27 -> 1013.95
A29: BDI % | H29: 1
A30: TOTAL DO SERVIÇO - R$ | H30: =H28*H29 -> 1013.95
A32: COMPOSIÇÃO DE PREÇO UNITÁRIO | H32: CPU003
A33: DESCRIÇÃO DO SERVIÇO | G33: DATA BASE: | H33: 2023-09-01
A34: ADMINISTRAÇÃO LOCAL | G34: UNIDADE: | H34: GB
A35: SERVIÇOS - COMPOSIÇÕES AUXILIARES
A36: BASE | B36: CÓDIGO | C36: DISCRIMINAÇÃO | D36: UNI | E36: QUANT. | G36: P.UNIT. | H36: P.TOTAL | I36: =$J$7 -> 1.1
A37: Mercado | C37: VALE TRANSPORTE - TARIFA DE ÔNIBUS NO MUNICIPIO BELO HORIZONTE PARA TRANSPORTE DE MÃO DE OBRA ATÉ O LOCAL DA OBRA | D37: un | E37: 352 | G37: =I37*I36 -> 4.95 | H37: =E37*G37 -> 1742.4 | I37: 4.5
A38: SUB-TOTAL | H38: =SUM(H37:H37) -> 1742.4
A39: MÃO DE OBRA
A40: BASE | B40: CÓDIGO | C40: DISCRIMINAÇÃO | D40: UNI | E40: QUANT. | G40: P.UNIT. | H40: P.TOTAL | I40: =$J$4 -> 1.5
A41: SINAPI | B41: 40811 | C41: ENGENHEIRO DE OBRA | D41: mês | E41: 0.5 | G41: =I41 -> 19486.89 | H41: =E41*G41 -> 9743.445 | I41: 19486.89
A42: SINAPI | B42: 40818 | C42: ENCARREGADO GERAL DE OBRAS | D42: mês | E42: 1 | G42: 8310.58 | H42: =E42*G42 -> 8310.58 | I42: 8310.58
A43: SINAPI | B43: 40812 | C43: AUXILIAR DE ESCRITORIO COM ENCARGOS COMPLEMENTARES | D43: mês | E43: 0.2 | G43: =I43*I40 -> 5456.685 | H43: =E43*G43 -> 1091.337 | I43: 3637.79
A44: SINAPI | B44: 40943 | C44: TÉCNICO EM SEGURANÇA DO TRABALHO | D44: h | E44: 24 | G44: =I44*I40 -> 61.41 | H44: =E44*G44 -> 1473.84 | I44: 40.94
A45: SUB-TOTAL | H45: =SUM(H41:H44) -> 20619.202
A46: PRODUÇÃO DA EQUIPE | D46: 10 | E46: CUSTO | H46: =H45+H38 -> 22361.602
A47: TOTAL - R$ | H47: =H46*D46 -> 223616.02
A48: BDI % | H48: 1
A49: TOTAL DO SERVIÇO - R$ | H49: =H47*H48 -> 223616.02
A51: COMPOSIÇÃO DE PREÇO UNITÁRIO | H51: CPU004
A52: DESCRIÇÃO DO SERVIÇO | G52: DATA BASE: | H52: 2023-09-01
A53: ALUGUEL CAÇAMBA 5 m³ A SER ENTREGUE EM REGIÃO CENTRAL EM DIAS DE SEMANA NO PERIODO APÓS 19:00 E RETIRADA NO MESMO DIA OU ATÉ AS 06:00 DO DIA SEGUINTE OU ENTREGUE NO SABADO APÓS AS 14:00 E RETIRADA ATÉ AS 06:00 DA PROXIMA SEGUNDA FEIRA | G53: UNIDADE: | H53: UNID.
A54: SERVIÇOS - COMPOSIÇÕES AUXILIARES
A55: BASE | B55: CÓDIGO | C55: DISCRIMINAÇÃO | D55: UNI | E55: QUANT. | G55: P.UNIT. | H55: P.TOTAL | I55: 1
A56: Mercado | C56: ALUGUEL CAÇAMBA 5 m³ A SER ENTREGUE EM REGIÃO CENTRAL EM DIAS DE SEMANA NO PERIODO APÓS 19:00 E RETIRADA NO MESMO DIA OU ATÉ AS 06:00 DO DIA SEGUINTE OU ENTREGUE NO SABADO APÓS AS 13:00 E RETIRADA ATÉ AS 06:00 DA PROXIMA SEGUNDA FEIRA | D56: und | E56: 1 | G56: =I56*I55 -> 400 | H56: =E56*G56 -> 400 | I56: 400
A57: SUB-TOTAL | H57: =SUM(H56:H56) -> 400
A58: PRODUÇÃO DA EQUIPE | D58: 1 | E58: CUSTO | H58: =H57 -> 400
A59: TOTAL - R$ | H59: =H58/D58 -> 400
A60: BDI % | H60: 1
A61: TOTAL DO SERVIÇO - R$ | H61: =H59*H60 -> 400
A63: COMPOSIÇÃO DE PREÇO UNITÁRIO | H63: CPU005
A64: DESCRIÇÃO DO SERVIÇO | G64: DATA BASE: | H64: 2023-09-01
A65: EXECUÇÃO DE INSTALAÇÕES HIDROSSANITÁRIAS, EXCLUSIVE EQUIPAMENTOS | G65: UNIDADE: | H65: CJ.
A66: MÃO DE OBRA
A67: BASE | B67: CÓDIGO | C67: DISCRIMINAÇÃO | D67: UNI | E67: QUANT. | G67: P.UNIT. | H67: P.TOTAL | I67: =$J$4 -> 1.5 | K67: =1*1.25/0.8 -> 1.5625
A68: SINAPI | B68: 88248 | C68: AUXILIAR DE ENCANADOR OU BOMBEIRO HIDRÁULICO COM ENCARGOS COMPLEMENTARES | D68: h | E68: 220 | G68: =I68*I67 -> 32.01 | H68: =E68*G68 -> 7042.2 | I68: 21.34
A69: SINAPI | B69: 88267 | C69: ENCANADOR OU BOMBEIRO HIDRÁULICO COM ENCARGOS COMPLEMENTARES | D69: h | E69: 110 | G69: =I69*I67 -> 40.05 | H69: =E69*G69 -> 4405.5 | I69: 26.7 | K69: =SUM(H68:H69) -> 11447.7
A70: SUB-TOTAL | H70: =SUM(H68:H69) -> 11447.7 | K70: =I67*K69 -> 17171.55
A71: PRODUÇÃO DA EQUIPE | D71: =$J$5 -> 0.85 | E71: CUSTO | H71: =+H70 -> 11447.7 | K71: =K70/0.8 -> 21464.4375
A72: TOTAL - R$ | H72: =H71/D71 -> 13467.88235
A73: BDI % | H73: 1
A74: TOTAL DO SERVIÇO - R$ | H74: =H72*H73 -> 13467.88235
A76: COMPOSIÇÃO DE PREÇO UNITÁRIO | H76: CPU006
A77: DESCRIÇÃO DO SERVIÇO | G77: DATA BASE: | H77: 2023-09-01
A78: DIVISÓRIA EM MDF, FORNECIMENTO E INSTALAÇÃO | G78: UNIDADE: | H78: M2
A79: MATERIAIS
A80: BASE | B80: CÓDIGO | C80: DISCRIMINAÇÃO | D80: UNI | E80: QUANT. | G80: P.UNIT. | H80: P.TOTAL
A81: SINAPI | B81: 34666 | C81: CHAPA DE MDF BRANCO LISO 2 FACES, E = 25 MM, DE *2,75 X 1,85* M | D81: m² | E81: 1.1 | G81: =I81 -> 80.17 | H81: =E81*G81 -> 88.187 | I81: 80.17
A82: SINAPI | B82: 5061 | C82: PREGO DE ACO POLIDO COM CABECA 18 X 27 (2 1/2 X 10) | D82: kg | E82: 0.0784 | G82: =I82 -> 18.9 | H82: =E82*G82 -> 1.48176 | I82: 18.9
A83: SUB-TOTAL | H83: =SUM(H81:H82) -> 89.66876
A84: EQUIPAMENTOS
A85: BASE | B85: CÓDIGO | C85: DISCRIMINAÇÃO | D85: UNI | E85: QUANT. | G85: P.UNIT. | H85: P.TOTAL
A86: SINAPI | B86: 91692 | C86: SERRA CIRCULAR DE BANCADA COM MOTOR ELÉTRICO POTÊNCIA DE 5HP, COM COIFA PARA DISCO 10" - CHP DIURNO. | D86: chp | E86: 0.017 | G86: =I86 -> 35.13 | H86: =E86*G86 -> 0.59721 | I86: 35.13
A87: SUB-TOTAL | H87: =SUM(H86:H86) -> 0.59721
A88: MÃO DE OBRA
A89: BASE | B89: CÓDIGO | C89: DISCRIMINAÇÃO | D89: UNI | E89: QUANT. | G89: P.UNIT. | H89: P.TOTAL | I89: =$J$4 -> 1.5
A90: SINAPI | B90: 88239 | C90: AJUDANTE DE CARPINTEIRO COM ENCARGOS COMPLEMENTARES | D90: h | E90: 9 | G90: =I90*I89 -> 32.67 | H90: =E90*G90 -> 294.03 | I90: 21.78
A91: SINAPI | B91: 88262 | C91: CARPINTEIRO DE FORMAS COM ENCARGOS COMPLEMENTARES | D91: h | E91: 9 | G91: =I91*I89 -> 40.575 | H91: =E91*G91 -> 365.175 | I91: 27.05
A92: SUB-TOTAL | H92: =SUM(H90:H91) -> 659.205
A93: PRODUÇÃO DA EQUIPE | D93: 1 | E93: CUSTO | H93: =H83+H92+H87 -> 749.47097
A94: TOTAL - R$ | H94: =H93/D93 -> 749.47097
A95: BDI % | H95: 1
A96: TOTAL DO SERVIÇO - R$ | H96: =H94*H95 -> 749.47097
A98: COMPOSIÇÃO DE PREÇO UNITÁRIO | H98: CPU007
A99: DESCRIÇÃO DO SERVIÇO | G99: DATA BASE: | H99: 2023-09-01
A100: PAINEL EM MDF FREIJÓ, FORNECIMENTO E INSTALAÇÃO | G100: UNIDADE: | H100: M2
A101: MATERIAIS
A102: BASE | B102: CÓDIGO | C102: DISCRIMINAÇÃO | D102: UNI | E102: QUANT. | G102: P.UNIT. | H102: P.TOTAL
A103: SINAPI | B103: 34666 | C103: CHAPA DE MDF BRANCO LISO 2 FACES, E = 25 MM, DE *2,75 X 1,85* M | D103: m² | E103: 1.1 | G103: =I103 -> 80.17 | H103: =E103*G103 -> 88.187 | I103: 80.17
A104: SINAPI | B104: 5061 | C104: PREGO DE ACO POLIDO COM CABECA 18 X 27 (2 1/2 X 10) | D104: kg | E104: 0.0784 | G104: =I104 -> 18.9 | H104: =E104*G104 -> 1.48176 | I104: 18.9
A105: SUB-TOTAL | H105: =SUM(H103:H104) -> 89.66876
A106: EQUIPAMENTOS
A107: BASE | B107: CÓDIGO | C107: DISCRIMINAÇÃO | D107: UNI | E107: QUANT. | G107: P.UNIT. | H107: P.TOTAL
A108: SINAPI | B108: 91692 | C108: SERRA CIRCULAR DE BANCADA COM MOTOR ELÉTRICO POTÊNCIA DE 5HP, COM COIFA PARA DISCO 10" - CHP DIURNO. | D108: chp | E108: 0.017 | G108: =I108 -> 35.13 | H108: =E108*G108 -> 0.59721 | I108: 35.13
A109: SUB-TOTAL | H109: =SUM(H108:H108) -> 0.59721
A110: MÃO DE OBRA
A111: BASE | B111: CÓDIGO | C111: DISCRIMINAÇÃO | D111: UNI | E111: QUANT. | G111: P.UNIT. | H111: P.TOTAL | I111: =$J$4 -> 1.5
A112: SINAPI | B112: 88239 | C112: AJUDANTE DE CARPINTEIRO COM ENCARGOS COMPLEMENTARES | D112: h | E112: 9 | G112: =I112*I111 -> 32.67 | H112: =E112*G112 -> 294.03 | I112: 21.78
A113: SINAPI | B113: 88262 | C113: CARPINTEIRO DE FORMAS COM ENCARGOS COMPLEMENTARES | D113: h | E113: 9 | G113: =I113*I111 -> 40.575 | H113: =E113*G113 -> 365.175 | I113: 27.05
A114: SUB-TOTAL | H114: =SUM(H112:H113) -> 659.205
A115: PRODUÇÃO DA EQUIPE | D115: 1 | E115: CUSTO | H115: =H105+H114+H109 -> 749.47097
A116: TOTAL - R$ | H116: =H115/D115 -> 749.47097
A117: BDI % | H117: 1
A118: TOTAL DO SERVIÇO - R$ | H118: =H116*H117 -> 749.47097
A120: COMPOSIÇÃO DE PREÇO UNITÁRIO | H120: CPU008
A121: DESCRIÇÃO DO SERVIÇO | G121: DATA BASE: | H121: 2023-09-01
A122: PORTA DE CORRER DE MADEIRA, SEMIOCA 80 X 210 CM, INCLUSO TRILHO, ROLDANA, PUXADOR E FECHADURA - FORNECIMENTO E INSTALAÇÃO | G122: UNIDADE: | H122: UNID.
A123: MATERIAIS
A124: BASE | B124: CÓDIGO | C124: DISCRIMINAÇÃO | D124: UNI | E124: QUANT. | G124: P.UNIT. | H124: P.TOTAL
A125: SINAPI | B125: 4998 | C125: PORTA DE MADEIRA-DE-LEI TIPO MEXICANA SEM EMENDA (ANGELIM OU EQUIVALENTE REGIONAL), E = *3,5* CM | D125: m² | E125: 1.68 | G125: =I125 -> 853.84 | H125: =E125*G125 -> 1434.4512 | I125: 853.84
A126: SINAPI | B126: 5067 | C126: PREGO DE ACO POLIDO COM CABECA 16 X 24 (2 1/4 X 12) | D126: kg | E126: 0.15 | G126: =I126 -> 20.49 | H126: =E126*G126 -> 3.0735 | I126: 20.49
A127: SINAPI | B127: 38179 | C127: ROLDANA CONCAVA DUPLA, 4 RODAS, PARA PORTA DE CORRER, EM ZAMAC COM CHAPA DE ACO, ROLAMENTO INTERNO BLINDADO DE ACO REVESTIDO EM NYLON | D127: un | E127: 1 | G127: 48.52 | H127: 48.52 | I127: 48.52
A128: SINAPI | B128: 11581 | C128: TRILHO PANTOGRAFICO CONCAVO, TIPO U, EM ALUMINIO, COM DIMENSOES DE APROX *35 X 35* MM, PARA ROLDANA DE PORTA DE CORRER | D128: m | E128: 1.6 | G128: 21.52 | H128: =E128*G128 -> 34.432 | I128: 21.52
A129: SINAPI | B129: 38165 | C129: FECHO / FECHADURA COM PUXADOR CONCHA, COM TRANCA TIPO TRAVA, PARA JANELA / PORTA DE CORRER (INCLUI TESTA, FECHADURA, PUXADOR) - COMPLETA | D129: cj | E129: 1 | G129: 72.24 | H129: =E129*G129 -> 72.24 | I129: 72.24
A130: SUB-TOTAL | H130: =SUM(H125:H129) -> 1592.7167
A131: MÃO DE OBRA
A132: BASE | B132: CÓDIGO | C132: DISCRIMINAÇÃO | D132: UNI | E132: QUANT. | G132: P.UNIT. | H132: P.TOTAL | I132: =$J$4 -> 1.5
A133: SINAPI | B133: 88316 | C133: SERVENTE DE OBRAS | D133: h | E133: 4.75 | G133: =I133*I132 -> 29.64 | H133: =E133*G133 -> 140.79 | I133: 19.76
A134: SINAPI | B134: 88261 | C134: CARPINTEIRO DE ESQUADRIA COM ENCARGOS COMPLEMENTARES | D134: h | E134: 4.75 | G134: =I134*I132 -> 45.885 | H134: =E134*G134 -> 217.95375 | I134: 30.59
A135: SUB-TOTAL | H135: =SUM(H133:H134) -> 358.74375
A136: PRODUÇÃO DA EQUIPE | D136: =$J$6 -> 0.85 | E136: CUSTO | H136: =H130+H135 -> 1951.46045
A137: TOTAL - R$ | H137: =H136/D136 -> 2295.835824
A138: BDI % | H138: 1
A139: TOTAL DO SERVIÇO - R$ | H139: =H137*H138 -> 2295.835824
A141: COMPOSIÇÃO DE PREÇO UNITÁRIO | H141: CPU009
A142: DESCRIÇÃO DO SERVIÇO | G142: DATA BASE: | H142: 2023-09-01
A143: PORTA DE CORRER DE VIDRO 220 X 200 CM, INCLUSO TRILHO, ROLDANA, PUXADOR - FORNECIMENTO E INSTALAÇÃO | G143: UNIDADE: | H143: UNID.
A144: MATERIAIS
A145: BASE | B145: CÓDIGO | C145: DISCRIMINAÇÃO | D145: UNI | E145: QUANT. | G145: P.UNIT. | H145: P.TOTAL
A146: SINAPI | B146: 34713 | C146: PORTA VIDRO TEMPERADO INCOLOR, 2 FOLHAS DE CORRER, E = 10 MM (SEM FERRAGENS E SEM COLOCACAO) | D146: m² | E146: 4.4 | G146: =I146 -> 288.18 | H146: =E146*G146 -> 1267.992 | I146: 288.18
A147: SINAPI | B147: 3104 | C147: CONJ. DE FERRAGENS PARA PORTA DE VIDRO TEMPERADO, EM ZAMAC CROMADO, CONTEMPLANDO DOBRADICA INF., DOBRADICA SUP., PIVO PARA DOBRADICA INF., PIVO PARA DOBRADICA SUP., FECHADURA CENTRAL EM ZAMC. CROMADO, CONTRA FECHADURA DE PRESSAO | D147: cj | E147: 1 | G147: =I147 -> 157.65 | H147: =E147*G147 -> 157.65 | I147: 157.65
A148: SINAPI | B148: 11522 | C148: PUXADOR DE EMBUTIR TIPO CONCHA, COM FURO PARA CHAVE, EM LATAO CROMADO, COMPRIMENTO DE APROX *100* MM E LARGURA DE APROX *40* MM | D148: un | E148: 1 | G148: 13.6 | H148: 13.6 | I148: 13.6
A149: SINAPI | B149: 11581 | C149: TRILHO PANTOGRAFICO CONCAVO, TIPO U, EM ALUMINIO, COM DIMENSOES DE APROX *35 X 35* MM, PARA ROLDANA DE PORTA DE CORRER | D149: m | E149: 4.4 | G149: 21.52 | H149: =E149*G149 -> 94.688 | I149: 21.52
A150: SUB-TOTAL | H150: =SUM(H146:H149) -> 1533.93
A151: MÃO DE OBRA
A152: BASE | B152: CÓDIGO | C152: DISCRIMINAÇÃO | D152: UNI | E152: QUANT. | G152: P.UNIT. | H152: P.TOTAL | I152: =$J$4 -> 1.5
A153: SINAPI | B153: 88316 | C153: SERVENTE DE OBRAS | D153: h | E153: 1 | G153: =I153*I152 -> 29.64 | H153: =E153*G153 -> 29.64 | I153: 19.76
A154: SINAPI | B154: 88325 | C154: VIDRACEIRO COM ENCARGOS COMPLEMENTARES H CR | D154: h | E154: 2.5 | G154: =I154*I152 -> 32.97 | H154: =E154*G154 -> 82.425 | I154: 21.98
A155: SINAPI | B155: 88309 | C155: PEDREIRO | D155: h | E155: 1 | G155: =I155*I152 -> 41.175 | H155: =E155*G155 -> 41.175 | I155: 27.45
A156: SUB-TOTAL | H156: =SUM(H153:H155) -> 153.24
A157: PRODUÇÃO DA EQUIPE | D157: =$J$6 -> 0.85 | E157: CUSTO | H157: =H150+H156 -> 1687.17
A158: TOTAL - R$ | H158: =H157/D157 -> 1984.905882
A159: BDI % | H159: 1
A160: TOTAL DO SERVIÇO - R$ | H160: =H158*H159 -> 1984.905882
A162: COMPOSIÇÃO DE PREÇO UNITÁRIO | H162: CPU010
A163: DESCRIÇÃO DO SERVIÇO | G163: DATA BASE: | H163: 2023-09-01
A164: PORTA TIPO VAI-VEM DE MADEIRA, SEMIOCA 150 X 210 CM, INCLUSO ADUELA E DOBRADIÇAS - FORNECIMENTO E INSTALAÇÃO | G164: UNIDADE: | H164: UNID.
A165: MATERIAIS
A166: BASE | B166: CÓDIGO | C166: DISCRIMINAÇÃO | D166: UNI | E166: QUANT. | G166: P.UNIT. | H166: P.TOTAL
A167: SINAPI | B167: 10554 | C167: PORTA DE MADEIRA, FOLHA MEDIA (NBR 15930) DE 700 X 2100 MM, DE 35 MM A 40 MM DE ESPESSURA, NUCLEO SEMI-SOLIDO (SARRAFEADO), CAPA LISA EM HDF, ACABAMENTO EM PRIMER PARA PINTURA | D167: un | E167: 2 | G167: =I167 -> 184.36 | H167: =E167*G167 -> 368.72 | I167: 184.36
A168: SINAPI | B168: 5067 | C168: PREGO DE ACO POLIDO COM CABECA 16 X 24 (2 1/4 X 12) | D168: kg | E168: 0.588 | G168: =I168 -> 20.49 | H168: =E168*G168 -> 12.04812 | I168: 20.49
A169: SINAPI | B169: 11451 | C169: DOBRADICA TIPO VAI-E-VEM EM ACO/FERRO, TAMANHO 3'', GALVANIZADO, COM PARAFUSOS UN CR | D169: un | E169: 6 | G169: 64.12 | H169: 384.72 | I169: 64.12
A170: SINAPI | B170: 184 | C170: BATENTE / PORTAL / ADUELA / MARCO EM MADEIRA MACICA COM REBAIXO, E = *3* CM, L = *14* CM, PARA PORTAS DE GIRO DE *60 CM A 120* CM X *210* CM, PINUS / EUCALIPTO / VIROLA OU EQUIVALENTE DA REGIAO (NAO INCLUI ALIZARES) | D170: jg | E170: 1 | G170: 130.06 | H170: =E170*G170 -> 130.06 | I170: 130.06
A171: SINAPI | B171: 4791 | C171: ADESIVO ACRILICO DE BASE AQUOSA / COLA DE CONTATO | D171: kg | E171: 0.28 | G171: 47 | H171: =E171*G171 -> 13.16
A172: SUB-TOTAL | H172: =SUM(H167:H171) -> 908.70812
A173: MÃO DE OBRA
A174: BASE | B174: CÓDIGO | C174: DISCRIMINAÇÃO | D174: UNI | E174: QUANT. | G174: P.UNIT. | H174: P.TOTAL | I174: =$J$4 -> 1.5
A175: SINAPI | B175: 88316 | C175: SERVENTE DE OBRAS | D175: h | E175: 7.26 | G175: =I175*I174 -> 29.64 | H175: =E175*G175 -> 215.1864 | I175: 19.76
A176: SINAPI | B176: 88261 | C176: CARPINTEIRO DE ESQUADRIA COM ENCARGOS COMPLEMENTARES | D176: h | E176: 4.32 | G176: =I176*I174 -> 45.885 | H176: =E176*G176 -> 198.2232 | I176: 30.59
A177: SUB-TOTAL | H177: =SUM(H175:H176) -> 413.4096
A178: PRODUÇÃO DA EQUIPE | D178: =$J$6 -> 0.85 | E178: CUSTO | H178: =H172+H177 -> 1322.11772
A179: TOTAL - R$ | H179: =H178/D178 -> 1555.432612
A180: BDI % | H180: 1
A181: TOTAL DO SERVIÇO - R$ | H181: =H179*H180 -> 1555.432612
A183: COMPOSIÇÃO DE PREÇO UNITÁRIO | H183: CPU011
A184: DESCRIÇÃO DO SERVIÇO | G184: DATA BASE: | H184: 2023-09-01
A185: PORTA DE CORRER DE MADEIRA, SEMIOCA 1,10 X 210 CM, INCLUSO TRILHO, ROLDANA, PUXADOR E FECHADURA - FORNECIMENTO E INSTALAÇÃO | G185: UNIDADE: | H185: UNID.
A186: MATERIAIS
A187: BASE | B187: CÓDIGO | C187: DISCRIMINAÇÃO | D187: UNI | E187: QUANT. | G187: P.UNIT. | H187: P.TOTAL
A188: SINAPI | B188: 4998 | C188: PORTA DE MADEIRA-DE-LEI TIPO MEXICANA SEM EMENDA (ANGELIM OU EQUIVALENTE REGIONAL), E = *3,5* CM | D188: m² | E188: 2.31 | G188: =I188 -> 853.84 | H188: =E188*G188 -> 1972.3704 | I188: 853.84
A189: SINAPI | B189: 5067 | C189: PREGO DE ACO POLIDO COM CABECA 16 X 24 (2 1/4 X 12) | D189: kg | E189: 0.15 | G189: =I189 -> 20.49 | H189: =E189*G189 -> 3.0735 | I189: 20.49
A190: SINAPI | B190: 38179 | C190: ROLDANA CONCAVA DUPLA, 4 RODAS, PARA PORTA DE CORRER, EM ZAMAC COM CHAPA DE ACO, ROLAMENTO INTERNO BLINDADO DE ACO REVESTIDO EM NYLON | D190: un | E190: 1 | G190: 48.52 | H190: 48.52 | I190: 48.52
A191: SINAPI | B191: 11581 | C191: TRILHO PANTOGRAFICO CONCAVO, TIPO U, EM ALUMINIO, COM DIMENSOES DE APROX *35 X 35* MM, PARA ROLDANA DE PORTA DE CORRER | D191: m | E191: 2.2 | G191: 21.52 | H191: =E191*G191 -> 47.344 | I191: 21.52
A192: SINAPI | B192: 38165 | C192: FECHO / FECHADURA COM PUXADOR CONCHA, COM TRANCA TIPO TRAVA, PARA JANELA / PORTA DE CORRER (INCLUI TESTA, FECHADURA, PUXADOR) - COMPLETA | D192: cj | E192: 1 | G192: 72.24 | H192: =E192*G192 -> 72.24 | I192: 72.24
A193: SUB-TOTAL | H193: =SUM(H188:H192) -> 2143.5479
A194: MÃO DE OBRA
A195: BASE | B195: CÓDIGO | C195: DISCRIMINAÇÃO | D195: UNI | E195: QUANT. | G195: P.UNIT. | H195: P.TOTAL | I195: =$J$4 -> 1.5
A196: SINAPI | B196: 88316 | C196: SERVENTE DE OBRAS | D196: h | E196: 4.75 | G196: =I196*I195 -> 29.64 | H196: =E196*G196 -> 140.79 | I196: 19.76
A197: SINAPI | B197: 88261 | C197: CARPINTEIRO DE ESQUADRIA COM ENCARGOS COMPLEMENTARES | D197: h | E197: 4.75 | G197: =I197*I195 -> 45.885 | H197: =E197*G197 -> 217.95375 | I197: 30.59
A198: SUB-TOTAL | H198: =SUM(H196:H197) -> 358.74375
A199: PRODUÇÃO DA EQUIPE | D199: =$J$6 -> 0.85 | E199: CUSTO | H199: =H193+H198 -> 2502.29165
A200: TOTAL - R$ | H200: =H199/D199 -> 2943.872529
A201: BDI % | H201: 1
A202: TOTAL DO SERVIÇO - R$ | H202: =H200*H201 -> 2943.872529
A204: COMPOSIÇÃO DE PREÇO UNITÁRIO | H204: CPU012
A205: DESCRIÇÃO DO SERVIÇO | G205: DATA BASE: | H205: 2023-09-01
A206: MÓVEL PLANEJADO EM MDF PARA ESCRITÓRIO DM1, CONFORME PROJETO - FORNECIMENTO E INSTALAÇÃO | G206: UNIDADE: | H206: UNID.
A207: MATERIAIS
A208: BASE | B208: CÓDIGO | C208: DISCRIMINAÇÃO | D208: UNI | E208: QUANT. | G208: P.UNIT. | H208: P.TOTAL
A209: SINAPI | B209: 34666 | C209: CHAPA DE MDF BRANCO LISO 2 FACES, E = 25 MM, DE *2,75 X 1,85* M | D209: m² | E209: 8.41 | G209: =I209 -> 80.14 | H209: =E209*G209 -> 673.9774 | I209: 80.14
A210: SUB-TOTAL | H210: =SUM(H209:H209) -> 673.9774
A211: MÃO DE OBRA | I211: =$J$4*0.9 -> 1.35
... 733 more rows

Sheet CRON.
A1: MINISTÉRIO DA INTEGRAÇÃO E DESENVOLVIMENTO REGIONAL - MDR
A2: COMPANHIA DE DESENVOLVIMENTO DOS VALES DO SÃO FRANCISCO E DO PARNAÍBA
A3: 1ª SUPERINTENDÊNCIA REGIONAL
A4: BELO HORIZONTE - MG
A5: PROJETO DE REFORMA DO ESCRITÓRIO DA CODEVASF (16ª SR)
A6: CRONOGRAMA FÍSICO FINANCEIRO
A7: VALOR TOTAL: | C7: =D26 -> 1299451.98
A8: ITEM | B8: DESCRIÇÃO | D8: VALOR ETAPAS (R$) | E8: MÊS 1 | F8: MÊS 2 | G8: MÊS 3 | H8: MÊS 4 | I8: MÊS 5 | J8: MÊS 6 | K8: MÊS 7 | L8: MÊS 8 | M8: MÊS 9 | N8: MÊS 10
A9: 1 | B9: =PO!D8 -> ITENS DE RATEIO | C9: FÍSICO: | D9: =SUM(E9:N9) -> 1 | E9: =1/10 -> 0.1 | F9: =E9 -> 0.1 | G9: =E9 -> 0.1 | H9: =E9 -> 0.1 | I9: =E9 -> 0.1 | J9: =E9 -> 0.1 | K9: =F9 -> 0.1 | L9: 0.1 | M9: 0.1 | N9: 0.1
C10: FINANCEIRO: | D10: =PO!I8 -> 298088.89 | E10: =$D10*E9 -> 29808.889 | F10: =$D10*F9 -> 29808.889 | G10: 29808.889 | H10: 29808.889 | I10: 29808.889 | J10: 29808.889 | K10: 29808.889 | L10: 29808.889 | M10: 29808.889 | N10: 29808.889
A11: 2 | B11: =PO!D13 -> INST. PRELIMINARES E LIMPEZA | C11: FÍSICO: | D11: =SUM(E11:N11) -> 1 | E11: 0.1 | F11: 0.1 | G11: 0.1 | H11: 0.1 | I11: 0.1 | J11: 0.1 | K11: 0.1 | L11: 0.1 | M11: 0.1 | N11: 0.1
C12: FINANCEIRO: | D12: =PO!I13 -> 32866.33 | E12: =$D12*E11 -> 3286.633 | F12: =$D12*F11 -> 3286.633 | G12: 3286.633 | H12: 3286.633 | I12: 3286.633 | J12: 3286.633 | K12: 3286.633 | L12: 3286.633 | M12: 3286.633 | N12: 3286.633
A13: 3 | B13: =PO!D17 -> DEMOLIÇÕES E REMOÇÕES | C13: FÍSICO: | D13: =SUM(E13:N13) -> 1 | E13: 0.25 | F13: 0.25 | G13: 0.25 | H13: 0.25 | I13: 0 | J13: 0 | K13: 0 | L13: 0 | M13: 0 | N13: 0
C14: FINANCEIRO: | D14: =PO!I17 -> 91647.43 | E14: =E13*$D14 -> 22911.8575 | F14: =F13*$D14 -> 22911.8575 | G14: 22911.8575 | H14: 22911.8575 | I14: 0 | J14: 0 | K14: 0 | L14: 0 | M14: 0 | N14: 0
A15: 4 | B15: =PO!D32 -> CONSTRUÇÃO CIVIL | C15: FÍSICO: | D15: =SUM(E15:N15) -> 1 | F15: =1/9 -> 0.1111111111 | G15: =1/9 -> 0.1111111111 | H15: 0.1111111111 | I15: 0.1111111111 | J15: 0.1111111111 | K15: 0.1111111111 | L15: 0.1111111111 | M15: 0.1111111111 | N15: 0.1111111111
C16: FINANCEIRO: | D16: =PO!I32 -> 471569.65 | E16: =$D16*E15 -> 0 | F16: =$D16*F15 -> 52396.62778 | G16: 52396.62778 | H16: 52396.62778 | I16: 52396.62778 | J16: 52396.62778 | K16: 52396.62778 | L16: 52396.62778 | M16: 52396.62778 | N16: 52396.62778
A17: 5 | B17: =PO!D58 -> ESQUADRIAS | C17: FÍSICO: | D17: =SUM(E17:N17) -> 1 | E17: 0.2 | F17: 0.2 | G17: 0.2 | H17: 0.2 | I17: 0.2 | J17: 0,00% | K17: 0,00% | L17: 0,00% | M17: 0,00% | N17: 0,00%
C18: FINANCEIRO: | D18: =PO!I58 -> 137355.38 | E18: =E17*$D18 -> 27471.076 | F18: =F17*$D18 -> 27471.076 | G18: 27471.076 | H18: 27471.076 | I18: 27471.076 | J18: =J17*D18 -> 0 | K18: =K17*E18 -> 0 | L18: 0 | M18: 0 | N18: 0
A19: 6 | B19: =PO!D73 -> MÓVEIS PLANEJADOS | C19: FÍSICO: | D19: =SUM(E19:N19) -> 1 | F19: =1/8 -> 0.125 | G19: =1/8 -> 0.125 | H19: 0.125 | I19: 0.125 | J19: 0.125 | K19: 0.125 | L19: 0.125 | M19: 0.125 | N19: 0
C20: FINANCEIRO: | D20: =PO!I73 -> 118496.45 | E20: =E19*$D20 -> 0 | F20: =F19*$D20 -> 14812.05625 | G20: 14812.05625 | H20: 14812.05625 | I20: 14812.05625 | J20: 14812.05625 | K20: 14812.05625 | L20: 14812.05625 | M20: 14812.05625 | N20: 0
A21: 7 | B21: =PO!D91 -> INSTALAÇÕES PREDIAIS | C21: FÍSICO: | D21: =SUM(E21:N21) -> 1 | G21: =1/6 -> 0.1666666667 | H21: =1/6 -> 0.1666666667 | I21: 0.1666666667 | J21: 0.1666666667 | K21: 0.1666666667 | L21: 0.1666666667 | M21: 0 | N21: 0
C22: FINANCEIRO: | D22: =PO!I91 -> 34763.37 | E22: =E21*D22 -> 0 | F22: =F21*E22 -> 0 | G22: =$D22*G21 -> 5793.895 | H22: =$D22*H21 -> 5793.895 | I22: =$D22*I21 -> 5793.895 | J22: 5793.895 | K22: =$D22*K21 -> 5793.895 | L22: =$D22*L21 -> 5793.895 | M22: =M21*G22 -> 0 | N22: 0
A23: 8 | B23: =PO!D94 -> MATERIAIS | C23: FÍSICO: | D23: =SUM(E23:N23) -> 1 | F23: =1/7 -> 0.1428571429 | G23: =1/7 -> 0.1428571429 | H23: 0.1428571429 | I23: 0.1428571429 | J23: 0.1428571429 | K23: 0.1428571429 | L23: 0.1428571429 | M23: 0 | N23: 0
C24: FINANCEIRO: | D24: =PO!I94 -> 114664.48 | E24: =E23*D24 -> 0 | F24: =F23*$D$24 -> 16380.64 | G24: =G23*$D$24 -> 16380.64 | H24: 16380.64 | I24: 16380.64 | J24: =J23*$D$24 -> 16380.64 | K24: 16380.64 | L24: =L23*$D$24 -> 16380.64 | M24: =M23*G24 -> 0 | N24: 0
A25: TOTAL | C25: FÍSICO | D25: 1 | E25: =E26/$D$26 -> 0.0642412777 | F25: =F26/$D$26 -> 0.1285678748 | G25: 0.1330265967 | H25: 0.1330265967 | I25: 0.1153946582 | J25: 0.09425414937 | K25: 0.09425414937 | L25: 0.09425414937 | M25: 0.07718962114 | N25: =N26/$D$26 -> 0.06579092655
C26: FINANCEIRO | D26: =D10+D12+D14+D16+D18+D20+D22+D24 -> 1299451.98 | E26: =E10+E12+E14+E16+E18+E20+E22+E24 -> 83478.4555 | F26: =F10+F12+F14+F16+F18+F20+F22+F24 -> 167067.7795 | G26: 172861.6745 | H26: 172861.6745 | I26: 149949.817 | J26: 122478.741 | K26: 122478.741 | L26: 122478.741 | M26: 100304.206 | N26: 85492.14978
A27: TOTAL ACUMULADO | C27: FÍSICO | D27: 1 | E27: =E25 -> 0.0642412777 | F27: =E27+F25 -> 0.1928091525 | G27: =F27+G25 -> 0.3258357493 | H27: =G27+H25 -> 0.458862346 | I27: 0.5742570042 | J27: 0.6685111536 | K27: 0.7627653029 | L27: 0.8570194523 | M27: 0.9342090734 | N27: 1
C28: FINANCEIRO | D28: =D26 -> 1299451.98 | E28: =E26 -> 83478.4555 | F28: =E28+F26 -> 250546.235 | G28: =F28+G26 -> 423407.9096 | H28: 596269.5841 | I28: 746219.4011 | J28: 868698.1421 | K28: 991176.8832 | L28: 1113655.624 | M28: 1213959.83 | N28: 1299451.98

Sheet BDI-SERV.
A1: LOCALIDADE: | C1: OBRA/SERVIÇO: | H1: DATA:
A2: BELO HORIZONTE - MG | C2: ESCRITÓRIO CODEVASF | H2: 2023-12-01
A4: DETALHAMENTO DO BDI - SERVIÇOS
A8: ITEM | B8: DESCRIÇÃO | D8: %
A11: 1 | B11: ADMINISTRAÇÃO CENTRAL | D11: 4 | E11: a = | F11: Administração Central
A13: 2 | B13: IMPOSTOS E TAXAS | D13: =SUM(D14:D16) -> 8.65 | E13: i = | F13: Impostos
A14: 2.1 | B14: ISS | D14: 5
A15: 2.2 | B15: PIS | D15: 0.65
A16: 2.3 | B16: Cofins | D16: 3
A18: 3 | B18: SEGUROS, RISCOS E GARANTIAS | D18: =0.8+1.27 -> 2.07 | E18: r = | F18: Seguros, Riscos e Garantias
A20: 4 | B20: DESPESAS FINANCEIRAS | D20: 1.23 | E20: df = | F20: Despesas financeiras
A22: 5 | B22: LUCRO | D22: 7.4 | E22: l = | F22: Lucro
A26: BDI = (((1+a+r)*(1+df)*(1+l))/(1-i))-1
A28: BDI = | B28: =((((1+D11/100+D18/100)*(1+D20/100)*(1+D22/100))/(1-D13/100))-1)*100 -> 26.24015973 | C28: calculado
A29: BDI = | B29: 26.24 | C29: adotado
A31: *Fórmula BDI conforme Acórdão 2622/2013

Sheet BD MAT.
A1: LOCALIDADE: | C1: OBRA/SERVIÇO: | H1: DATA:
A2: BELO HORIZONTE - MG | C2: ESCRITÓRIO CODEVASF | H2: 2023-12-01
A4: DETALHAMENTO DO BDI - MATERIAIS
A8: ITEM | B8: DESCRIÇÃO | D8: %
A11: 1 | B11: ADMINISTRAÇÃO CENTRAL | D11: 3.45 | E11: a = | F11: Administração Central
A13: 2 | B13: IMPOSTOS E TAXAS | D13: =SUM(D14:D16) -> 3.65 | E13: i = | F13: Impostos
A14: 2.1 | B14: ISS | D14: 0
A15: 2.2 | B15: PIS | D15: 0.65
A16: 2.3 | B16: Cofins | D16: 3
A18: 3 | B18: SEGUROS, RISCOS E GARANTIAS | D18: =0.48+0.85 -> 1.33 | E18: r = | F18: Seguros, Riscos e Garantias
A20: 4 | B20: DESPESAS FINANCEIRAS | D20: 0.85 | E20: df = | F20: Despesas financeiras
A22: 5 | B22: LUCRO | D22: 5.11 | E22: l = | F22: Lucro
A26: BDI = (((1+a+r)*(1+df)*(1+l))/(1-i))-1
A28: BDI = | B28: =((((1+D11/100+D18/100)*(1+D20/100)*(1+D22/100))/(1-D13/100))-1)*100 -> 15.27804794 | C28: calculado
A29: BDI = | B29: 15.28 | C29: adotado
A31: *Fórmula BDI conforme Acórdão 2622/2013
